Workbook

Sheet Introduction
B2: Clay Brick Carbon Tax and Energy model introduction
C4: Carbon and Energy legislation and regulation in South Africa | I4: The Carbon Tax and Energy Impact assessment model
D5: South Africa Carbon Tax Infogram | J5: Description
E6: A Carbon tax of 120 ZAR/tCO2e for stationary fossil fuel based GHG emissions for carbon intensive sectors including the Clay Brick Sector is expected to be introduced in 2017. | K6: The Carbon Tax Impact Assessment Model allows individual brick makers to determine the total volume of emissions over which it will become liable under the Carbon Tax as well as the total costs and the costs per 1000 standards bricks it will incur. In addition to this the model will provide insight into the energy consumption and both energy and carbon mitigation options.
J13: The Carbon Tax Waterfall
K14: The Carbon Tax Waterfall aims at providing a schematic breakdown of the emissions over which an entity becomes liable under the Carbon tax. The waterfall provides insight into the main contributors to the taxable emissions as well as components that can reduce and entity’s exposure.
D24: Clay brick sector energy profile
E25: A breakdown of the body energy, firing energy, electrical energy and transport energy used for the production of Clay bricks in South Africa.
J27: Operation fo the Model
K29: Input variables | O29: Setting | R29: Results
J31: Acknowledgement
K32: The Carbon Tax Impact Assessment Model was developed by EcoMetrix Africa (Pty) Ltd. for the Clay Brick Association (CBA) with the assistance of the Energy Efficient Clay Brick (EECB). The EECB is funded by the Swiss Agency for Development and Cooperation (SDC) and implemented by Swisscontact. The model has been configured and its outputs prepared by EcoMetrix Africa (Pty) Ltd for the exclusive use by members of the CBA.

Sheet Carbon Tax model
B2: Clay Brick Carbon Tax Impact Assessment Model
B4: Profile | Q4: Carbon Tax Exposure (tCO2e)
C5: Entity | H5: tCO2e
D6: In which province of South Africa are you located? | G6: Please select
D7: What kind of firing technology do you use? | G7: Please select
C8: Carbon Tax
D9: Do you export a share of your saleable bricks? | G9: Please select | H9: =IF(G9="Yes",1,0) -> 0 | L9: Component | M9: lift | N9: tCO2e | O9: ZAR | P9: tCO2e/kStB
D10: Are you partaking in the Carbon budgeting process? | G10: Please select | L10: Gross direct emissions | M10: 0 | N10: =H18+H19+H20+H22+H23+H24+H26+H27+H28 -> 5060.9536 | O10: =N10*'Model settings'!$D$10 -> 607314.432 | P10: =N10/$F$16 -> 0.3373969067 | Q10: =O10/$F$16 -> 40.4876288
D11: Do you use organic fuel that is renewable? | G11: Please select | H11: =IF(G11="Yes",1,0) -> 0 | L11: Transport emissions | M11: =N10-N11 -> 5060.8536 | N11: =H26+H27+H28 -> 0.1 | O11: =N11*'Model settings'!$D$10 -> 12 | P11: =N11/$F$16 -> 6.666666667e-06 | Q11: =O11/$F$16 -> 0.0008
L12: Sequestration of emissions | M12: =M11-N12 -> 5060.7536 | N12: =H36+H37+H38 -> 0.1 | O12: =N12*'Model settings'!$D$10 -> 12 | P12: 6.666666667e-06 | Q12: 0.0008
B13: Activity level | L13: Gross taxable emissions | M13: 0 | N13: =N10-N11-N12 -> 5060.7536 | O13: =N13*'Model settings'!$D$10 -> 607290.432 | P13: =N13/$F$16 -> 0.3373835733 | Q13: 40.4860288
C14: Production | F14: Volume | G14: UoM | L14: Basic tax-free allowance | M14: =N13-N14 -> 2024.30144 | N14: =('Model settings'!F5/100)*$N$13 -> 3036.45216 | O14: =N14*'Model settings'!$D$10 -> 364374.2592 | P14: 0.202430144 | Q14: 24.29161728
D15: Green Bricks | F15: 20000 | G15: 1000 Standard Bricks | L15: Trade exposure allowance | M15: =M14-N15 -> 2024.29144 | N15: =IF(G9="Yes",('Model settings'!I5/100)*(F34/F16)*N13,0.01) -> 0.01 | O15: =N15*'Model settings'!$D$10 -> 1.2 | P15: 6.666666667e-07 | Q15: 8e-05
D16: Saleable Bricks | F16: 15000 | G16: 1000 Standard Bricks | L16: Z-factor allowance | M16: =M15-N16 -> 1771.25376 | N16: =('Model settings'!J5/100)*N13 -> 253.03768 | O16: =N16*'Model settings'!$D$10 -> 30364.5216 | P16: 0.01686917867 | Q16: 2.02430144
C17: Body Fuel | E17: Type | F17: Volume | G17: UoM | L17: Carbon budget allowance | M17: 1771.15376 | N17: =IF(G10="Yes",('Model settings'!K5/100)*N13,0.1) -> 0.1 | O17: =N17*'Model settings'!$D$10 -> 12 | P17: 6.666666667e-06 | Q17: 0.0008
D18: Fuel 1 | E18: CHARCOAL | F18: 1500 | G18: Metric ton | H18: =VLOOKUP(E18,'CTax variables'!$D$4:$F$24,2,FALSE)*F18 -> 5038.95 | L18: Offsets allowance | M18: 1771.05376 | N18: =H40 -> 0.1 | O18: =N18*'Model settings'!$D$10 -> 12 | P18: 6.666666667e-06 | Q18: 0.0008
D19: Fuel 2 | E19: FINE COAL | F19: 12 | G19: Metric ton | H19: =VLOOKUP(E19,'CTax variables'!$D$4:$F$24,2,FALSE)*F19 -> 21.9036 | L19: Net taxable emissions | M19: =M18-N19 -> 0 | N19: =N13-N14-N15-N16-N17-N18 -> 1771.05376 | O19: =N19*'Model settings'!$D$10 -> 212526.4512 | P19: 0.1180702507 | Q19: 14.16843008
D20: Fuel 3 | E20: Please select | F20: 0 | G20: Metric ton | H20: =VLOOKUP(E20,'CTax variables'!$D$4:$F$24,2,FALSE)*F20 -> 0
C21: Firing Fuel | E21: Type | F21: Volume | G21: UoM
D22: Fuel 1 | E22: Please select | F22: 0 | G22: Metric ton | H22: =VLOOKUP(E22,'CTax variables'!$D$27:$F$58,2,FALSE)*F22 -> 0
D23: Fuel 2 | E23: Please select | F23: 0 | G23: Metric ton | H23: =VLOOKUP(E23,'CTax variables'!$D$27:$F$58,2,FALSE)*F23 -> 0
D24: Fuel 3 | E24: Please select | F24: 0 | G24: Metric ton | H24: =VLOOKUP(E24,'CTax variables'!$D$27:$F$58,2,FALSE)*F24 -> 0
C25: Transport Fuel | E25: Type | F25: Volume | G25: UoM
D26: Fuel 1 | E26: Please select | F26: 0 | G26: Metric ton | H26: =IF(F26=0,0.1,VLOOKUP(E26,'CTax variables'!$D$62:$F$69,2,FALSE)*F26) -> 0.1 | J26: Carbon Tax
D27: Fuel 2 | E27: Please select | F27: 0 | G27: Metric ton | H27: =VLOOKUP(E27,'CTax variables'!$D$62:$F$69,2,FALSE)*F27 -> 0 | J27: Carbon Tax exposure | M27: Gross direct emissions | N27: Gross taxable emissions | O27: Net taxable emissions | P27: Per 1000 standard bricks
D28: Fuel 3 | E28: Please select | F28: 0 | G28: Metric ton | H28: =VLOOKUP(E28,'CTax variables'!$D$62:$F$69,2,FALSE)*F28 -> 0
C29: Electricity | E29: Type | F29: Volume | G29: UoM | K29: Volume (tCO2e) | M29: =N10 -> 5060.9536 | N29: =N13 -> 5060.7536 | O29: =N19 -> 1771.05376 | P29: =P19 -> 0.1180702507
D30: Consumption | E30: Electricity | F30: 0 | G30: MWh | H30: =F30*'Model settings'!D8 -> 0 | K30: Costs (ZAR) | M30: =O10 -> 607314.432 | N30: =O13 -> 607290.432 | O30: =O19 -> 212526.4512 | P30: =Q19 -> 14.16843008
B32: Tax compensation | J32: Sector Benchmark
C33: Export exposure | F33: Volume | G33: UoM | J33: Components | M33: Total deviation | N33: Deviation per 1000 Standard bricks | P33: % Deviation
D34: Bricks exported | F34: 100000 | G34: 1000 Standard Bricks | K34: Carbon Tax (Z) | M34: 0 | N34: 0 | O34: 0 | P34: 0
C35: Sequestration Compensation | F35: Volume | G35: UoM
D36: Fuel 1 | E36: please select | F36: 0 | G36: Metric ton | H36: =IF(F36=0,0.1,VLOOKUP(E36,'CTax variables'!$D$72:$F$75,2,FALSE)*F36) -> 0.1
D37: Fuel 2 | E37: please select | F37: 0 | G37: Metric ton | H37: =VLOOKUP(E37,'CTax variables'!$D$72:$F$75,2,FALSE)*F37 -> 0
D38: Fuel 3 | E38: please select | F38: 0 | G38: Metric ton | H38: =VLOOKUP(E38,'CTax variables'!$D$72:$F$75,2,FALSE)*F38 -> 0
C39: Carbon Tax Offsets | E39: Type | F39: Volume | G39: UoM
D40: Offsets applied | F40: 0 | G40: tCO2e | H40: =IF(F40=0,0.1,F40) -> 0.1

Sheet Energy Consumption model
B2: Clay Brick Energy Consumption Model
B4: Activity level | J4: Green Bricks | N4: Energy profile (GJ/1000 Standard Bricks)
C5: Production | F5: Volume | G5: UoM
D6: Green Bricks | F6: ='Carbon Tax model'!F15 -> 20000 | G6: 1000 Standard Bricks
D7: Saleable Bricks | F7: ='Carbon Tax model'!F16 -> 15000 | G7: 1000 Standard Bricks
C9: Body Fuel | E9: Type | F9: Volume (Metric ton) | G9: Energy (GJ/Metric ton) or CV (MJ/kg)
D10: Fuel 1 | E10: Please select | F10: 100 | G10: 3 | H10: =F10*G10 -> 300
D11: Fuel 2 | E11: Please select | F11: 0 | G11: 0 | H11: =F11*G11 -> 0
D12: Fuel 3 | E12: Please select | F12: 0 | G12: 0 | H12: 0
H13: =SUM(H10:H12) -> 300 | I13: t
C14: Firing Fuel | E14: Type | F14: Volume (Metric ton) | G14: Energy (GJ/Metric ton) or CV (MJ/kg)
D15: Fuel 1 | E15: Please select | F15: 200 | G15: 4 | H15: =F15*G15 -> 800 | L15: Green bricks | M15: GJ/1k Standard Bricks
D16: Fuel 2 | E16: Please select | F16: 0 | G16: 0 | H16: =F16*G16 -> 0 | L16: Body energy | M16: =H13/$F$6 -> 0.015
D17: Fuel 3 | E17: Please select | F17: 0 | G17: 0 | H17: 0 | L17: Firing energy | M17: =H18/$F$6 -> 0.04
H18: =SUM(H15:H17) -> 800 | I18: t | L18: Transport energy | M18: =H23/$F$6 -> 0.02025
C19: Transport Fuel | E19: Type | F19: Volume (Metric ton) | G19: Energy (GJ/Metric ton) or CV (MJ/kg) | L19: Electricity | M19: =H25/$F$6 -> 0.00216
D20: Fuel 1 | E20: Please select | F20: 45 | G20: 9 | H20: =F20*G20 -> 405 | L20: Total | M20: =H26/$F$6 -> 0.07741
D21: Fuel 2 | E21: Please select | F21: 0 | G21: 0 | H21: =F21*G21 -> 0
D22: Fuel 3 | E22: Please select | F22: 0 | G22: 0 | H22: 0
H23: =SUM(H20:H22) -> 405 | I23: t
C24: Electricity | E24: Type | F24: Volume (MWh) | G24: Energy (GJ/MWh)
D25: Consumption | E25: Electricity | F25: 12 | G25: 3.6 | H25: =F25*G25 -> 43.2 | I25: t
H26: =H13+H18+H23+H25 -> 1548.2 | I26: tt
B27: Energy profile (GJ/1000 Standard Bricks) | J27: Saleable Bricks | N27: Energy profile (GJ/1000 Standard Bricks)
D28: Green Brick energy components | E28: Total | F28: Per 1000 Standard bricks | G28: Relative difference to sector benchmark (%)
D29: Body energy | E29: =H13 -> 300 | F29: =M16 -> 0.015 | G29: =(F29/$F$33)*$G$33 -> 0.005555555556 | L29: Saleable Bricks | M29: GJ/1k Standard Bricks
D30: Firing energy | E30: =H18 -> 800 | F30: =M17 -> 0.04 | G30: =(F30/$F$33)*$G$33 -> 0.01481481481 | L30: Body energy | M30: =H13/$F$7 -> 0.02
D31: Transport energy | E31: =H23 -> 405 | F31: =M18 -> 0.02025 | G31: 0.0075 | L31: Firing energy | M31: =H18/$F$7 -> 0.05333333333
D32: Electricity | E32: =H25 -> 43.2 | F32: =M19 -> 0.00216 | G32: 0.0008 | L32: Transport energy | M32: =H23/$F$7 -> 0.027
D33: Total | E33: =H26 -> 1548.2 | F33: =M20 -> 0.07741 | G33: =F33/'Model settings'!F13 -> 0.02867037037 | L33: Electricity | M33: =H25/$F$7 -> 0.00288
L34: Total | M34: =H26/$F$7 -> 0.1032133333
D35: Saleable Brick energy components | E35: Total | F35: Per 1000 Standard bricks | G35: Relative difference to sector benchmark (%)
D36: Body energy | E36: =E29 -> 300 | F36: =M30 -> 0.02 | G36: =(F36/$F$40)*$G$40 -> 0.007407407407
D37: Firing energy | E37: =E30 -> 800 | F37: =M31 -> 0.05333333333 | G37: =(F37/$F$33)*$G$33 -> 0.01975308642
D38: Transport energy | E38: 405 | F38: =M32 -> 0.027 | G38: 0.01
D39: Electricity | E39: 43.2 | F39: =M33 -> 0.00288 | G39: 0.001066666667
D40: Total | E40: 1548.2 | F40: =M34 -> 0.1032133333 | G40: =F40/'Model settings'!F13 -> 0.03822716049

Sheet Model settings (hidden)
B3: Schedule 2
E4: Sector | F4: Basic tax-free allowance for fossil fuel combustion emissions % | G4: Basic tax-free allowance for process emissions % | H4: Fugitive emissions allowance % | I4: Trade exposure allowance % | J4: Z-factor allowance % | K4: Carbon budget allowance % | L4: Offsets allowance % | M4: Maximum total allowances %
C5: Fuel combustion | D5: Energy Industries | E5: Construction | F5: 60 | G5: 0 | H5: 0 | I5: 10 | J5: 5 | K5: 5 | L5: 10 | M5: 90
B7: Electricity emission factor | F7: GJ/Mwh
D8: 1.01 | E8: tCO2e/MWh | F8: 3.6 | G8: GJ/Mwh
B9: Tax rate
C10: Rate | D10: 120 | E10: ZAR/TCO2e
B12: Clay brick energy intensity | F12: GJ/1000 Standard Bricks | H12: Source: LCA
F13: 2.7
B15: Clay brick Carbon intensity | F15: TCO2e/1000 Standard Bricks | H15: Source: ?????
B19: Tax components
C20: Gross direct emissions
C21: Transport emissions
C22: Sequestration of emissions
C23: Gross taxable emissions
C24: Basic tax-free allowance for fossil fuel combustion emissions
C25: Trade exposure allowance
C26: Z-factor allowance
C27: Carbon budget allowance
C28: Offsets allowance
C29: Maximum total allowances
C30: Net taxable emissions
B33: Provinces
C34: Please select
C35: Eastern Cape
C36: Free State
C37: Gauteng
C38: KwaZulu-Natal
C39: Limpopo
C40: Mpumalanga
C41: Northern Cape
C42: North West
C43: Western Cape
B45: Firing technologies
C46: Please select
C47: Clamp
C48: Hoffman
C49: Tunnel
C50: TVA
C51: VSBK
B53: Y/N
C54: Please select
C55: Yes
C56: No

Sheet CTax variables (hidden)
B2: STATIONARY SOURCE
C3: TYPE | D3: FUEL TYPE | E3: GHG EMISSION FACTOR (CO2e) PER TONNE | F3: UoM
C4: Body Fuel | D4: Please select | E4: 0 | F4: Metric ton
C5: Body Fuel | D5: ANTHRACITE | E5: 2.6371 | F5: Metric ton
C6: Body Fuel | D6: BITUMEN | E6: 3.2541 | F6: Metric ton
C7: Body Fuel | D7: BROWN COAL BRIQUETTES | E7: 2.0279 | F7: Metric ton
C8: Body Fuel | D8: CHARCOAL | E8: 3.3593 | F8: Metric ton
C9: Body Fuel | D9: COAL TAR | E9: 2.2727 | F9: Metric ton
C10: Body Fuel | D10: COAL SLURRY | E10: =E18 -> 1.8253 | F10: Metric ton
C11: Body Fuel | D11: COKE OVEN COKE AND LIGNITE COKE | E11: 3.0306 | F11: Metric ton
A12: x | C12: Body Fuel | D12: FILTER CAKE | E12: =E6 -> 3.2541 | F12: Metric ton
A13: x | C13: Body Fuel | D13: FINE COAL | E13: =E18 -> 1.8253 | F13: Metric ton
C14: Body Fuel | D14: FLY ASH | E14: =E5*0.42 -> 1.107582 | F14: Metric ton
C15: Body Fuel | D15: LIGNITE | E15: 1.2075 | F15: Metric ton
C16: Body Fuel | D16: MUNICIPAL WASTES (BIOMASS FRACTION) | E16: 1.1817 | F16: Metric ton
C17: Body Fuel | D17: MUNICIPAL WASTES (NON BIOMASS FRACTION) | E17: 0.9357 | F17: Metric ton
C18: Body Fuel | D18: OTHER BITUMINOUS COAL | E18: 1.8253 | F18: Metric ton
C19: Body Fuel | D19: OTHER PRIMARY SOLID BIOMASS | E19: 1.1817 | F19: Metric ton
C20: Body Fuel | D20: PEAT | E20: 1.0391 | F20: Metric ton
C21: Body Fuel | D21: PETROLEUM COKE | E21: 3.1768 | F21: Metric ton
A22: x | C22: Body Fuel | D22: SPIRAL DUFF | E22: =E9 -> 2.2727 | F22: Metric ton
C23: Body Fuel | D23: SUB-BITUMINOUS COAL | E23: 1.8541 | F23: Metric ton
C24: Body Fuel | D24: WOOD/WOOD WASTE | E24: 1.7764 | F24: Metric ton
C26: TYPE | D26: FUEL TYPE | E26: GHG EMISSION FACTOR (CO2e) PER TONNE | F26: UoM
C27: Firing Fuel | D27: Please select | E27: 0 | F27: Metric ton
C28: Firing Fuel | D28: ANTHRACITE | E28: 2.6371 | F28: Metric ton
C29: Firing Fuel | D29: BITUMEN | E29: 3.2541 | F29: Metric ton
C30: Firing Fuel | D30: BIODIESEL | E30: 1.9183 | F30: Metric ton
C31: Firing Fuel | D31: BROWN COAL BRIQUETTES | E31: 2.0279 | F31: Metric ton
C32: Firing Fuel | D32: CHARCOAL | E32: 3.3593 | F32: Metric ton
C33: Firing Fuel | D33: COAL TAR | E33: 2.2727 | F33: Metric ton
C34: Firing Fuel | D34: COKE OVEN COKE AND LIGNITE COKE | E34: 3.0306 | F34: Metric ton
C35: Firing Fuel | D35: FILTER CAKE | E35: =E29 -> 3.2541 | F35: Metric ton
C36: Firing Fuel | D36: FINE COAL | E36: =E42 -> 2.7545 | F36: Metric ton
C37: Firing Fuel | D37: FLY ASH | E37: =E28*0.42 -> 1.107582 | F37: Metric ton
C38: Firing Fuel | D38: CRUDE OIL | E38: 3.2214 | F38: Metric ton
C39: Firing Fuel | D39: DIESEL | E39: 2.8326 | F39: Metric ton
C40: Firing Fuel | D40: ETHANE | E40: 2.8607 | F40: Metric ton
C41: Firing Fuel | D41: GAS WORKS GAS | E41: 1.7203 | F41: Metric ton
C42: Firing Fuel | D42: LANDFILL GAS | E42: 2.7545 | F42: Metric ton
C43: Firing Fuel | D43: LIGNITE | E43: 1.2075 | F43: Metric ton
C44: Firing Fuel | D44: LIQUEFIED PETROLEUM GASES | E44: 1.6862 | F44: Metric ton
C45: Firing Fuel | D45: MUNICIPAL WASTES (BIOMASS FRACTION) | E45: 1.1817 | F45: Metric ton
C46: Firing Fuel | D46: MUNICIPAL WASTES (NON BIOMASS FRACTION) | E46: 0.9357 | F46: Metric ton
C47: Firing Fuel | D47: NAPHTHA | E47: 3.2906 | F47: Metric ton
C48: Firing Fuel | D48: NATURAL GAS | E48: 2.3023 | F48: Metric ton
C49: Firing Fuel | D49: OTHER BITUMINOUS COAL | E49: 1.8253 | F49: Metric ton
C50: Firing Fuel | D50: OTHER PETROLEUM PRODUCTS | E50: 2.9566 | F50: Metric ton
C51: Firing Fuel | D51: OTHER PRIMARY SOLID BIOMASS | E51: 1.1817 | F51: Metric ton
C52: Firing Fuel | D52: PEAT | E52: 1.0391 | F52: Metric ton
C53: Firing Fuel | D53: PETROL | E53: 2.3785 | F53: Metric ton
C54: Firing Fuel | D54: PETROLEUM COKE | E54: 3.1768 | F54: Metric ton
C55: Firing Fuel | D55: SPIRAL DUFF | E55: =E42 -> 2.7545 | F55: Metric ton
C56: Firing Fuel | D56: SLUDGE GAS | E56: 2.7545 | F56: Metric ton
C57: Firing Fuel | D57: SUB-BITUMINOUS COAL | E57: 1.8541 | F57: Metric ton
C58: Firing Fuel | D58: WOOD/WOOD WASTE | E58: 1.7764 | F58: Metric ton
B60: MOBILE SOURCES
C61: TYPE | D61: FUEL TYPE | E61: GHG EMISSION FACTOR (CO2e) PER TONNE | F61: UoM
C62: Transport Fuel | D62: Please select | E62: 0 | F62: Metric ton
C63: Transport Fuel | D63: BIODIESEL | E63: 1.9183 | F63: Metric ton
C64: Transport Fuel | D64: DIESEL | E64: 2.8706 | F64: Metric ton
C65: Transport Fuel | D65: LIQUEFIED PETROLEUM GASES | E65: 1.7244 | F65: Metric ton
C66: Transport Fuel | D66: NATURAL GAS | E66: 2.4233 | F66: Metric ton
C67: Transport Fuel | D67: PETROL-LOW MILEAGE LDV | E67: 2.4305 | F67: Metric ton
C68: Transport Fuel | D68: PETROL-OXIDATION CATALYST | E68: 2.4707 | F68: Metric ton
C69: Transport Fuel | D69: PETROL-UNCONTROLLED | E69: 2.4284 | F69: Metric ton
C71: TYPE | D71: FUEL TYPE | E71: GHG EMISSION FACTOR (CO2e) PER TONNE | F71: UoM
C72: Sustainable Fuel | D72: please select | E72: 0 | F72: Metric ton
C73: Sustainable Fuel | D73: BIODIESEL | E73: 1.9183 | F73: Metric ton
C74: Sustainable Fuel | D74: CHARCOAL | E74: 3.3593 | F74: Metric ton
C75: Sustainable Fuel | D75: WOOD/WOOD WASTE | E75: 1.7764 | F75: Metric ton

Sheet Energy variables (hidden)
B2: STATIONARY SOURCE
C3: TYPE | D3: FUEL TYPE | E3: ENERGY CONTENT | F3: UoM
C4: Body Fuel | D4: Please select | E4: 0 | F4: GJ/Metric ton
C5: Body Fuel | D5: ANTHRACITE | E5: =(29.3+33.5)/2 -> 31.4 | F5: GJ/Metric ton
C6: Body Fuel | D6: BITUMEN | E6: =(29.3+33.5)/2 -> 31.4 | F6: GJ/Metric ton
C7: Body Fuel | D7: BROWN COAL BRIQUETTES | E7: =(29.3+33.5)/2 -> 31.4 | F7: GJ/Metric ton
C8: Body Fuel | D8: CHARCOAL | E8: 30 | F8: GJ/Metric ton
C9: Body Fuel | D9: COAL TAR | E9: =(29.3+33.5)/2 -> 31.4 | F9: GJ/Metric ton
C10: Body Fuel | D10: COAL SLURRY | E10: =E21/2 -> 15.7 | F10: GJ/Metric ton
C11: Body Fuel | D11: COKE OVEN COKE AND LIGNITE COKE | E11: =(29.3+33.5)/2 -> 31.4 | F11: GJ/Metric ton
C12: Body Fuel | D12: FILTER CAKE | E12: =E6 -> 31.4 | F12: GJ/Metric ton
C13: Body Fuel | D13: FINE COAL | E13: =E18 -> 31.4 | F13: GJ/Metric ton
C14: Body Fuel | D14: FLY ASH | E14: =E5/2 -> 15.7 | F14: GJ/Metric ton
C15: Body Fuel | D15: LIGNITE | E15: =(29.3+33.5)/2 -> 31.4 | F15: GJ/Metric ton
C16: Body Fuel | D16: MUNICIPAL WASTES (BIOMASS FRACTION) | E16: 18.5 | F16: GJ/Metric ton
C17: Body Fuel | D17: MUNICIPAL WASTES (NON BIOMASS FRACTION) | E17: 32.564 | F17: GJ/Metric ton
C18: Body Fuel | D18: OTHER BITUMINOUS COAL | E18: =(29.3+33.5)/2 -> 31.4 | F18: GJ/Metric ton
C19: Body Fuel | D19: OTHER PRIMARY SOLID BIOMASS | E19: 18.5 | F19: GJ/Metric ton
C20: Body Fuel | D20: PEAT | E20: 13 | F20: GJ/Metric ton
C21: Body Fuel | D21: PETROLEUM COKE | E21: =(29.3+33.5)/2 -> 31.4 | F21: GJ/Metric ton
C22: Body Fuel | D22: SPIRAL DUFF | E22: =E9 -> 31.4 | F22: GJ/Metric ton
C23: Body Fuel | D23: SUB-BITUMINOUS COAL | E23: =(29.3+33.5)/2 -> 31.4 | F23: GJ/Metric ton
C24: Body Fuel | D24: WOOD/WOOD WASTE | E24: =(16+21)/2 -> 18.5 | F24: GJ/Metric ton
C26: TYPE | D26: FUEL TYPE | E26: ENERGY CONTENT | F26: UoM
C27: Firing Fuel | D27: Please select | E27: 0 | F27: GJ/Metric ton
C28: Firing Fuel | D28: ANTHRACITE | E28: =(29.3+33.5)/2 -> 31.4 | F28: GJ/Metric ton
C29: Firing Fuel | D29: BITUMEN | E29: =(29.3+33.5)/2 -> 31.4 | F29: GJ/Metric ton
C30: Firing Fuel | D30: BIODIESEL | E30: 37.8 | F30: GJ/Metric ton
C31: Firing Fuel | D31: BROWN COAL BRIQUETTES | E31: =(29.3+33.5)/2 -> 31.4 | F31: GJ/Metric ton
C32: Firing Fuel | D32: CHARCOAL | E32: 30 | F32: GJ/Metric ton
C33: Firing Fuel | D33: COAL TAR | E33: =(29.3+33.5)/2 -> 31.4 | F33: GJ/Metric ton
C34: Firing Fuel | D34: COKE OVEN COKE AND LIGNITE COKE | E34: =(29.3+33.5)/2 -> 31.4 | F34: GJ/Metric ton
C35: Firing Fuel | D35: FILTER CAKE | E35: =E29 -> 31.4 | F35: GJ/Metric ton
C36: Firing Fuel | D36: FINE COAL | E36: =E41 -> 44 | F36: GJ/Metric ton
C37: Firing Fuel | D37: FLY ASH | E37: =E28/2 -> 15.7 | F37: GJ/Metric ton
C38: Firing Fuel | D38: CRUDE OIL | E38: 41.868 | F38: GJ/Metric ton
C39: Firing Fuel | D39: DIESEL | E39: 48.1 | F39: GJ/Metric ton
C40: Firing Fuel | D40: ETHANE | E40: 51.9 | F40: GJ/Metric ton
C41: Firing Fuel | D41: GAS WORKS GAS | E41: =(38+50)/2 -> 44 | F41: GJ/Metric ton
C42: Firing Fuel | D42: LANDFILL GAS | E42: =(38+50)/2 -> 44 | F42: GJ/Metric ton
C43: Firing Fuel | D43: LIGNITE | E43: =(29.3+33.5)/2 -> 31.4 | F43: GJ/Metric ton
C44: Firing Fuel | D44: LIQUEFIED PETROLEUM GASES | E44: =(38+50)/2 -> 44 | F44: GJ/Metric ton
C45: Firing Fuel | D45: MUNICIPAL WASTES (BIOMASS FRACTION) | E45: 18.5 | F45: GJ/Metric ton
C46: Firing Fuel | D46: MUNICIPAL WASTES (NON BIOMASS FRACTION) | E46: 32.564 | F46: GJ/Metric ton
C47: Firing Fuel | D47: NAPHTHA | E47: 41.868 | F47: GJ/Metric ton
C48: Firing Fuel | D48: NATURAL GAS | E48: =(38+50)/2 -> 44 | F48: GJ/Metric ton
C49: Firing Fuel | D49: OTHER BITUMINOUS COAL | E49: =(29.3+33.5)/2 -> 31.4 | F49: GJ/Metric ton
C50: Firing Fuel | D50: OTHER PETROLEUM PRODUCTS | E50: 41.868 | F50: GJ/Metric ton
C51: Firing Fuel | D51: OTHER PRIMARY SOLID BIOMASS | E51: 18.5 | F51: GJ/Metric ton
C52: Firing Fuel | D52: PEAT | E52: =(10+16)/2 -> 13 | F52: GJ/Metric ton
C53: Firing Fuel | D53: PETROL | E53: =(45+48.3)/2 -> 46.65 | F53: GJ/Metric ton
C54: Firing Fuel | D54: PETROLEUM COKE | E54: =(29.3+33.5)/2 -> 31.4 | F54: GJ/Metric ton
C55: Firing Fuel | D55: SLUDGE GAS | E55: =(38+50)/2 -> 44 | F55: GJ/Metric ton
C56: Firing Fuel | D56: SUB-BITUMINOUS COAL | E56: =(29.3+33.5)/2 -> 31.4 | F56: GJ/Metric ton
C57: Firing Fuel | D57: WOOD/WOOD WASTE | E57: 18.5 | F57: GJ/Metric ton
B58: MOBILE SOURCES
C59: TYPE | D59: FUEL TYPE | E59: ENERGY CONTENT | F59: UoM
C60: Transport Fuel | D60: Please select | E60: 0 | F60: GJ/Metric ton
C61: Transport Fuel | D61: BIODIESEL | E61: 37.8 | F61: GJ/Metric ton
C62: Transport Fuel | D62: DIESEL | E62: 48.1 | F62: GJ/Metric ton
C63: Transport Fuel | D63: LIQUEFIED PETROLEUM GASES | E63: =(38+50)/2 -> 44 | F63: GJ/Metric ton
C64: Transport Fuel | D64: NATURAL GAS | E64: =(38+50)/2 -> 44 | F64: GJ/Metric ton
C65: Transport Fuel | D65: PETROL-LOW MILEAGE LDV | E65: =(45+48.3)/2 -> 46.65 | F65: GJ/Metric ton
C66: Transport Fuel | D66: PETROL-OXIDATION CATALYST | E66: =(45+48.3)/2 -> 46.65 | F66: GJ/Metric ton
C67: Transport Fuel | D67: PETROL-UNCONTROLLED | E67: =(45+48.3)/2 -> 46.65 | F67: GJ/Metric ton

Sheet Schedule 1 (hidden)
B2: SCHEDULE 1 Carbon Tax draft Bill
C5: TABLE | D5: TYPE | E5: CATEGORY | G5: FUEL TYPE | H5: GHG EMISSION FACTOR | I5: UoM
B6: 6 | C6: Table 1 | D6: Energy Combustion Emission Factors | E6: STATIONARY SOURCE CATEGORY | G6: ANTHRACITE | H6: 2.6371 | I6: (CO2e) PER TONNE
B7: 7 | C7: Table 1 | D7: Energy Combustion Emission Factors | E7: STATIONARY SOURCE CATEGORY | G7: AVIATION GASOLINE | H7: 2.4095 | I7: (CO2e) PER TONNE
B8: 8 | C8: Table 1 | D8: Energy Combustion Emission Factors | E8: STATIONARY SOURCE CATEGORY | G8: BIODIESEL | H8: 1.9183 | I8: (CO2e) PER TONNE
B9: 9 | C9: Table 1 | D9: Energy Combustion Emission Factors | E9: STATIONARY SOURCE CATEGORY | G9: BIOGASOLINE | H9: 1.9183 | I9: (CO2e) PER TONNE
B10: 10 | C10: Table 1 | D10: Energy Combustion Emission Factors | E10: STATIONARY SOURCE CATEGORY | G10: BITUMEN | H10: 3.2541 | I10: (CO2e) PER TONNE
B11: 11 | C11: Table 1 | D11: Energy Combustion Emission Factors | E11: STATIONARY SOURCE CATEGORY | G11: BLAST FURNACE GAS | H11: 0.6423 | I11: (CO2e) PER TONNE
B12: 12 | C12: Table 1 | D12: Energy Combustion Emission Factors | E12: STATIONARY SOURCE CATEGORY | G12: BROWN COAL BRIQUETTES | H12: 2.0279 | I12: (CO2e) PER TONNE
B13: 13 | C13: Table 1 | D13: Energy Combustion Emission Factors | E13: STATIONARY SOURCE CATEGORY | G13: CHARCOAL | H13: 3.3593 | I13: (CO2e) PER TONNE
B14: 14 | C14: Table 1 | D14: Energy Combustion Emission Factors | E14: STATIONARY SOURCE CATEGORY | G14: COAL TAR | H14: 2.2727 | I14: (CO2e) PER TONNE
B15: 15 | C15: Table 1 | D15: Energy Combustion Emission Factors | E15: STATIONARY SOURCE CATEGORY | G15: COKE OVEN COKE AND LIGNITE COKE | H15: 3.0306 | I15: (CO2e) PER TONNE
B16: 16 | C16: Table 1 | D16: Energy Combustion Emission Factors | E16: STATIONARY SOURCE CATEGORY | G16: COKE OVEN GAS | H16: 1.7203 | I16: (CO2e) PER TONNE
B17: 17 | C17: Table 1 | D17: Energy Combustion Emission Factors | E17: STATIONARY SOURCE CATEGORY | G17: COKING COAL | H17: 2.0915 | I17: (CO2e) PER TONNE
B18: 18 | C18: Table 1 | D18: Energy Combustion Emission Factors | E18: STATIONARY SOURCE CATEGORY | G18: CRUDE OIL | H18: 3.2214 | I18: (CO2e) PER TONNE
B19: 19 | C19: Table 1 | D19: Energy Combustion Emission Factors | E19: STATIONARY SOURCE CATEGORY | G19: DIESEL | H19: 2.8326 | I19: (CO2e) PER TONNE
B20: 20 | C20: Table 1 | D20: Energy Combustion Emission Factors | E20: STATIONARY SOURCE CATEGORY | G20: ETHANE | H20: 2.8607 | I20: (CO2e) PER TONNE
B21: 21 | C21: Table 1 | D21: Energy Combustion Emission Factors | E21: STATIONARY SOURCE CATEGORY | G21: GAS COKE | H21: 1.852 | I21: (CO2e) PER TONNE
B22: 22 | C22: Table 1 | D22: Energy Combustion Emission Factors | E22: STATIONARY SOURCE CATEGORY | G22: GAS WORKS GAS | H22: 1.7203 | I22: (CO2e) PER TONNE
B23: 23 | C23: Table 1 | D23: Energy Combustion Emission Factors | E23: STATIONARY SOURCE CATEGORY | G23: INDUSTRIAL WASTES | I23: (CO2e) PER TONNE
B24: 24 | C24: Table 1 | D24: Energy Combustion Emission Factors | E24: STATIONARY SOURCE CATEGORY | G24: JET GASOLINE | H24: 2.4095 | I24: (CO2e) PER TONNE
B25: 25 | C25: Table 1 | D25: Energy Combustion Emission Factors | E25: STATIONARY SOURCE CATEGORY | G25: JET KEROSENE | H25: 2.4609 | I25: (CO2e) PER TONNE
B26: 26 | C26: Table 1 | D26: Energy Combustion Emission Factors | E26: STATIONARY SOURCE CATEGORY | G26: LANDFILL GAS | H26: 2.7545 | I26: (CO2e) PER TONNE
B27: 27 | C27: Table 1 | D27: Energy Combustion Emission Factors | E27: STATIONARY SOURCE CATEGORY | G27: LIGNITE | H27: 1.2075 | I27: (CO2e) PER TONNE
B28: 28 | C28: Table 1 | D28: Energy Combustion Emission Factors | E28: STATIONARY SOURCE CATEGORY | G28: LIQUEFIED PETROLEUM GASES | H28: 1.6862 | I28: (CO2e) PER TONNE
B29: 29 | C29: Table 1 | D29: Energy Combustion Emission Factors | E29: STATIONARY SOURCE CATEGORY | G29: LUBRICANTS | H29: 2.9566 | I29: (CO2e) PER TONNE
B30: 30 | C30: Table 1 | D30: Energy Combustion Emission Factors | E30: STATIONARY SOURCE CATEGORY | G30: MUNICIPAL WASTES (BIOMASS FRACTION) | H30: 1.1817 | I30: (CO2e) PER TONNE
B31: 31 | C31: Table 1 | D31: Energy Combustion Emission Factors | E31: STATIONARY SOURCE CATEGORY | G31: MUNICIPAL WASTES (NON BIOMASS FRACTION) | H31: 0.9357 | I31: (CO2e) PER TONNE
B32: 32 | C32: Table 1 | D32: Energy Combustion Emission Factors | E32: STATIONARY SOURCE CATEGORY | G32: NAPHTHA | H32: 3.2906 | I32: (CO2e) PER TONNE
B33: 33 | C33: Table 1 | D33: Energy Combustion Emission Factors | E33: STATIONARY SOURCE CATEGORY | G33: NATURAL GAS | H33: 2.3023 | I33: (CO2e) PER TONNE
B34: 34 | C34: Table 1 | D34: Energy Combustion Emission Factors | E34: STATIONARY SOURCE CATEGORY | G34: NATURAL GAS LIQUIDS | H34: 2.6423 | I34: (CO2e) PER TONNE
B35: 35 | C35: Table 1 | D35: Energy Combustion Emission Factors | E35: STATIONARY SOURCE CATEGORY | G35: OIL SHALE AND TAR SANDS | H35: 0.9565 | I35: (CO2e) PER TONNE
B36: 36 | C36: Table 1 | D36: Energy Combustion Emission Factors | E36: STATIONARY SOURCE CATEGORY | G36: ORIMULSION | H36: 2.1243 | I36: (CO2e) PER TONNE
B37: 37 | C37: Table 1 | D37: Energy Combustion Emission Factors | E37: STATIONARY SOURCE CATEGORY | G37: OTHER BIOGAS | H37: 2.7545 | I37: (CO2e) PER TONNE
B38: 38 | C38: Table 1 | D38: Energy Combustion Emission Factors | E38: STATIONARY SOURCE CATEGORY | G38: OTHER BITUMINOUS COAL | H38: 1.8253 | I38: (CO2e) PER TONNE
B39: 39 | C39: Table 1 | D39: Energy Combustion Emission Factors | E39: STATIONARY SOURCE CATEGORY | G39: OTHER KEROSENE | H39: 2.6694 | I39: (CO2e) PER TONNE
B40: 40 | C40: Table 1 | D40: Energy Combustion Emission Factors | E40: STATIONARY SOURCE CATEGORY | G40: OTHER LIQUID BIOFUELS | H40: 2.1878 | I40: (CO2e) PER TONNE
B41: 41 | C41: Table 1 | D41: Energy Combustion Emission Factors | E41: STATIONARY SOURCE CATEGORY | G41: OTHER PETROLEUM PRODUCTS | H41: 2.9566 | I41: (CO2e) PER TONNE
B42: 42 | C42: Table 1 | D42: Energy Combustion Emission Factors | E42: STATIONARY SOURCE CATEGORY | G42: OTHER PRIMARY SOLID BIOMASS | H42: 1.1817 | I42: (CO2e) PER TONNE
B43: 43 | C43: Table 1 | D43: Energy Combustion Emission Factors | E43: STATIONARY SOURCE CATEGORY | G43: OXYGEN STEEL FURNACE GAS | H43: 1.2853 | I43: (CO2e) PER TONNE
B44: 44 | C44: Table 1 | D44: Energy Combustion Emission Factors | E44: STATIONARY SOURCE CATEGORY | G44: PARAFFIN WAXES | H44: 2.9566 | I44: (CO2e) PER TONNE
B45: 45 | C45: Table 1 | D45: Energy Combustion Emission Factors | E45: STATIONARY SOURCE CATEGORY | G45: PATENT FUEL | H45: 2.0279 | I45: (CO2e) PER TONNE
B46: 46 | C46: Table 1 | D46: Energy Combustion Emission Factors | E46: STATIONARY SOURCE CATEGORY | G46: PEAT | H46: 1.0391 | I46: (CO2e) PER TONNE
B47: 47 | C47: Table 1 | D47: Energy Combustion Emission Factors | E47: STATIONARY SOURCE CATEGORY | G47: PETROL | H47: 2.3785 | I47: (CO2e) PER TONNE
B48: 48 | C48: Table 1 | D48: Energy Combustion Emission Factors | E48: STATIONARY SOURCE CATEGORY | G48: PETROLEUM COKE | H48: 3.1768 | I48: (CO2e) PER TONNE
B49: 49 | C49: Table 1 | D49: Energy Combustion Emission Factors | E49: STATIONARY SOURCE CATEGORY | G49: REFINERY FEEDSTOCK | H49: 3.1625 | I49: (CO2e) PER TONNE
B50: 50 | C50: Table 1 | D50: Energy Combustion Emission Factors | E50: STATIONARY SOURCE CATEGORY | G50: REFINERY GAS | H50: 2.8538 | I50: (CO2e) PER TONNE
B51: 51 | C51: Table 1 | D51: Energy Combustion Emission Factors | E51: STATIONARY SOURCE CATEGORY | G51: RESIDUAL FUEL OIL | H51: 3.2301 | I51: (CO2e) PER TONNE
B52: 52 | C52: Table 1 | D52: Energy Combustion Emission Factors | E52: STATIONARY SOURCE CATEGORY | G52: SHALE OIL | H52: 2.8021 | I52: (CO2e) PER TONNE
B53: 53 | C53: Table 1 | D53: Energy Combustion Emission Factors | E53: STATIONARY SOURCE CATEGORY | G53: SLUDGE GAS | H53: 2.7545 | I53: (CO2e) PER TONNE
B54: 54 | C54: Table 1 | D54: Energy Combustion Emission Factors | E54: STATIONARY SOURCE CATEGORY | G54: SUB-BITUMINOUS COAL | H54: 1.8541 | I54: (CO2e) PER TONNE
B55: 55 | C55: Table 1 | D55: Energy Combustion Emission Factors | E55: STATIONARY SOURCE CATEGORY | G55: SULPHITE LYES (BLACK LIQUOR) | H55: 1.1323 | I55: (CO2e) PER TONNE
B56: 56 | C56: Table 1 | D56: Energy Combustion Emission Factors | E56: STATIONARY SOURCE CATEGORY | G56: WASTE OILS | H56: 3.022 | I56: (CO2e) PER TONNE
B57: 57 | C57: Table 1 | D57: Energy Combustion Emission Factors | E57: STATIONARY SOURCE CATEGORY | G57: WHITE SPIRIT AND SBP | H57: 2.9566 | I57: (CO2e) PER TONNE
B58: 58 | C58: Table 1 | D58: Energy Combustion Emission Factors | E58: STATIONARY SOURCE CATEGORY | G58: WOOD/WOOD WASTE | H58: 1.7764 | I58: (CO2e) PER TONNE
B59: 59 | C59: Table 1 | D59: Energy Combustion Emission Factors | E59: NON-STATIONARY / MOBILE SOURCE CATEGORY | G59: AVIATION GASOLINE | H59: 2.3977 | I59: (CO2e) PER TONNE
B60: 60 | C60: Table 1 | D60: Energy Combustion Emission Factors | E60: NON-STATIONARY / MOBILE SOURCE CATEGORY | G60: COMPRESSED NATURAL GAS | H60: N/A | I60: (CO2e) PER TONNE
B61: 61 | C61: Table 1 | D61: Energy Combustion Emission Factors | E61: NON-STATIONARY / MOBILE SOURCE CATEGORY | G61: DIESEL | H61: 2.8706 | I61: (CO2e) PER TONNE
B62: 62 | C62: Table 1 | D62: Energy Combustion Emission Factors | E62: NON-STATIONARY / MOBILE SOURCE CATEGORY | G62: DIESEL –OFFROAD | H62: 3.1497 | I62: (CO2e) PER TONNE
B63: 63 | C63: Table 1 | D63: Energy Combustion Emission Factors | E63: NON-STATIONARY / MOBILE SOURCE CATEGORY | G63: DIESEL-RAIL | H63: 3.1494 | I63: (CO2e) PER TONNE
B64: 64 | C64: Table 1 | D64: Energy Combustion Emission Factors | E64: NON-STATIONARY / MOBILE SOURCE CATEGORY | G64: JET KEROSENE | H64: 2.4732 | I64: (CO2e) PER TONNE
B65: 65 | C65: Table 1 | D65: Energy Combustion Emission Factors | E65: NON-STATIONARY / MOBILE SOURCE CATEGORY | G65: KEROSENE | H65: 2.6694 | I65: (CO2e) PER TONNE
B66: 66 | C66: Table 1 | D66: Energy Combustion Emission Factors | E66: NON-STATIONARY / MOBILE SOURCE CATEGORY | G66: LIQUEFIED NATURAL GASES | H66: N/A | I66: (CO2e) PER TONNE
B67: 67 | C67: Table 1 | D67: Energy Combustion Emission Factors | E67: NON-STATIONARY / MOBILE SOURCE CATEGORY | G67: LIQUEFIED PETROLEUM GASES | H67: 1.7244 | I67: (CO2e) PER TONNE
B68: 68 | C68: Table 1 | D68: Energy Combustion Emission Factors | E68: NON-STATIONARY / MOBILE SOURCE CATEGORY | G68: LUBRICANTS | H68: 2.9566 | I68: (CO2e) PER TONNE
B69: 69 | C69: Table 1 | D69: Energy Combustion Emission Factors | E69: NON-STATIONARY / MOBILE SOURCE CATEGORY | G69: NATURAL GAS | H69: 2.4233 | I69: (CO2e) PER TONNE
B70: 70 | C70: Table 1 | D70: Energy Combustion Emission Factors | E70: NON-STATIONARY / MOBILE SOURCE CATEGORY | G70: OTHER KEROSENE | H70: 2.6694 | I70: (CO2e) PER TONNE
B71: 71 | C71: Table 1 | D71: Energy Combustion Emission Factors | E71: NON-STATIONARY / MOBILE SOURCE CATEGORY | G71: OTHER PETROLEUM PRODUCTS | H71: 2.9566 | I71: (CO2e) PER TONNE
B72: 72 | C72: Table 1 | D72: Energy Combustion Emission Factors | E72: NON-STATIONARY / MOBILE SOURCE CATEGORY | G72: PARAFFIN WAXES | H72: 2.9566 | I72: (CO2e) PER TONNE
B73: 73 | C73: Table 1 | D73: Energy Combustion Emission Factors | E73: NON-STATIONARY / MOBILE SOURCE CATEGORY | G73: PETROL-LOW MILEAGE LDV | H73: 2.4305 | I73: (CO2e) PER TONNE
B74: 74 | C74: Table 1 | D74: Energy Combustion Emission Factors | E74: NON-STATIONARY / MOBILE SOURCE CATEGORY | G74: PETROL-OXIDATION CATALYST | H74: 2.4707 | I74: (CO2e) PER TONNE
B75: 75 | C75: Table 1 | D75: Energy Combustion Emission Factors | E75: NON-STATIONARY / MOBILE SOURCE CATEGORY | G75: PETROL-UNCONTROLLED | H75: 2.4284 | I75: (CO2e) PER TONNE
B76: 76 | C76: Table 1 | D76: Energy Combustion Emission Factors | E76: NON-STATIONARY / MOBILE SOURCE CATEGORY | G76: REFINERY GAS | H76: 2.8538 | I76: (CO2e) PER TONNE
B77: 77 | C77: Table 1 | D77: Energy Combustion Emission Factors | E77: NON-STATIONARY / MOBILE SOURCE CATEGORY | G77: RESIDUAL FUEL OIL – WATER | H77: 3.2512 | I77: (CO2e) PER TONNE
B78: 78 | C78: Table 1 | D78: Energy Combustion Emission Factors | E78: NON-STATIONARY / MOBILE SOURCE CATEGORY | G78: SUB-BITUMINOUS COAL – RAIL | H78: 1.8545 | I78: (CO2e) PER TONNE
B79: 79 | C79: Table 1 | D79: Energy Combustion Emission Factors | E79: NON-STATIONARY / MOBILE SOURCE CATEGORY | G79: WHITE SPIRIT & SBP | H79: 2.9566 | I79: (CO2e) PER TONNE
B80: 80 | C80: Table 2 | D80: Fugitive Emission Factors | E80: SOLID FUELS (M3 /TONNE) | G80: UNDERGROUND COAL MINING | H80: 0.1187 | I80: (CO2e) PER TONNE
B81: 81 | C81: Table 2 | D81: Fugitive Emission Factors | E81: SOLID FUELS (M3 /TONNE) | G81: UNDERGROUND POST-MINING (HANDLING & TRANSPORT) | H81: 0.0277 | I81: (CO2e) PER TONNE
B82: 82 | C82: Table 2 | D82: Fugitive Emission Factors | E82: SOLID FUELS (M3 /TONNE) | G82: SURFACE COAL MINING | H82: 0 | I82: (CO2e) PER TONNE
B83: 83 | C83: Table 2 | D83: Fugitive Emission Factors | E83: SOLID FUELS (M3 /TONNE) | G83: SURFACE POST-MINING (STORAGE AND TRANSPORT) | H83: 0 | I83: (CO2e) PER TONNE
B84: 84 | C84: Table 2 | D84: Fugitive Emission Factors | E84: OIL AND NATURAL GAS (Gg/ 103M3 TOTAL OIL PRODUCTION) | F84: FLARING AND VENTING | G84: WELL DRILLING | H84: 0.859 | I84: CO2e (TONNE /M3)
B85: 85 | C85: Table 2 | D85: Fugitive Emission Factors | E85: OIL AND NATURAL GAS (Gg/ 103M3 TOTAL OIL PRODUCTION) | F85: FLARING AND VENTING | G85: WELL TESTING | H85: 10.1931 | I85: CO2e (TONNE /M3)
B86: 86 | C86: Table 2 | D86: Fugitive Emission Factors | E86: OIL AND NATURAL GAS (Gg/ 103M3 TOTAL OIL PRODUCTION) | F86: FLARING AND VENTING | G86: WELL SERVICING | H86: 2.5319 | I86: CO2e (TONNE /M3)
B87: 87 | C87: Table 2 | D87: Fugitive Emission Factors | E87: OIL AND NATURAL GAS (Gg/ 103M3 TOTAL OIL PRODUCTION) | F87: GAS PRODUCTION (Gg/ 106M3 TOTAL OIL PRODUCTION) | G87: FUGITIVES (low end) | H87: 8.754 | I87: CO2e (TONNE /M3)
B88: 88 | C88: Table 2 | D88: Fugitive Emission Factors | E88: OIL AND NATURAL GAS (Gg/ 103M3 TOTAL OIL PRODUCTION) | F88: GAS PRODUCTION (Gg/ 106M3 TOTAL OIL PRODUCTION) | G88: FUGITIVES (high end) | H88: 52.982 | I88: CO2e (TONNE /M3)
B89: 89 | C89: Table 2 | D89: Fugitive Emission Factors | E89: OIL AND NATURAL GAS (Gg/ 103M3 TOTAL OIL PRODUCTION) | F89: GAS PRODUCTION (Gg/ 106M3 TOTAL OIL PRODUCTION) | G89: FLARING | H89: 1.2237 | I89: CO2e (TONNE /M3)
B90: 90 | C90: Table 2 | D90: Fugitive Emission Factors | E90: OIL AND NATURAL GAS (Gg/ 103M3 TOTAL OIL PRODUCTION) | F90: GAS PROCESSING (Gg/ 106M3 RAW GAS FEED) | G90: SWEET GAS PLANTS-FUGITIVES (low end) | H90: 11.19 | I90: CO2e (TONNE /M3)
B91: 91 | C91: Table 2 | D91: Fugitive Emission Factors | E91: OIL AND NATURAL GAS (Gg/ 103M3 TOTAL OIL PRODUCTION) | F91: GAS PROCESSING (Gg/ 106M3 RAW GAS FEED) | G91: SWEET GAS PLANTS-FUGITIVES (high end) | H91: 24.01 | I91: CO2e (TONNE /M3)
B92: 92 | C92: Table 2 | D92: Fugitive Emission Factors | E92: OIL AND NATURAL GAS (Gg/ 103M3 TOTAL OIL PRODUCTION) | F92: GAS PROCESSING (Gg/ 106M3 RAW GAS FEED) | G92: SWEET GAS PLANTS-FLARING | H92: 1.835 | I92: CO2e (TONNE /M3)
B93: 93 | C93: Table 2 | D93: Fugitive Emission Factors | E93: OIL AND NATURAL GAS (Gg/ 103M3 TOTAL OIL PRODUCTION) | F93: GAS PROCESSING (Gg/ 106M3 RAW GAS FEED) | G93: SOUR GAS PLANTS-FUGITIVES | H93: 2.2389 | I93: CO2e (TONNE /M3)
B94: 94 | C94: Table 2 | D94: Fugitive Emission Factors | E94: OIL AND NATURAL GAS (Gg/ 103M3 TOTAL OIL PRODUCTION) | F94: GAS PROCESSING (Gg/ 106M3 RAW GAS FEED) | G94: SOUR GAS PLANTS-FLARING | H94: 3.6712 | I94: CO2e (TONNE /M3)
B95: 95 | C95: Table 2 | D95: Fugitive Emission Factors | E95: OIL AND NATURAL GAS (Gg/ 103M3 TOTAL OIL PRODUCTION) | F95: GAS PROCESSING (Gg/ 106M3 RAW GAS FEED) | G95: SOUR GAS PLANTS -RAW CO2 VENTING | H95: 63 | I95: CO2e (TONNE /M3)
B96: 96 | C96: Table 2 | D96: Fugitive Emission Factors | E96: OIL AND NATURAL GAS (Gg/ 103M3 TOTAL OIL PRODUCTION) | F96: GAS PROCESSING (Gg/ 106M3 RAW GAS FEED) | G96: DEEP CUT EXTRACTION-FUGITIVES | H96: 0.2546 | I96: CO2e (TONNE /M3)
B97: 97 | C97: Table 2 | D97: Fugitive Emission Factors | E97: OIL AND NATURAL GAS (Gg/ 103M3 TOTAL OIL PRODUCTION) | F97: GAS PROCESSING (Gg/ 106M3 RAW GAS FEED) | G97: DEEP CUT EXTRACTION-FLARING | H97: 0.1152 | I97: CO2e (TONNE /M3)
B98: 98 | C98: Table 2 | D98: Fugitive Emission Factors | E98: OIL AND NATURAL GAS (Gg/ 103M3 TOTAL OIL PRODUCTION) | F98: GAS PROCESSING (Gg/ 106M3 RAW GAS FEED) | G98: DEFAULT-FUGITIVES (low end) | H98: 3.462 | I98: CO2e (TONNE /M3)
B99: 99 | C99: Table 2 | D99: Fugitive Emission Factors | E99: OIL AND NATURAL GAS (Gg/ 103M3 TOTAL OIL PRODUCTION) | F99: GAS PROCESSING (Gg/ 106M3 RAW GAS FEED) | G99: DEFAULT-FUGITIVES (high end) | H99: 24.01 | I99: CO2e (TONNE /M3)
B100: 100 | C100: Table 2 | D100: Fugitive Emission Factors | E100: OIL AND NATURAL GAS (Gg/ 103M3 TOTAL OIL PRODUCTION) | F100: GAS PROCESSING (Gg/ 106M3 RAW GAS FEED) | G100: DEFAULT-FLARING | H100: 3.0558 | I100: CO2e (TONNE /M3)
B101: 101 | C101: Table 2 | D101: Fugitive Emission Factors | E101: OIL AND NATURAL GAS (Gg/ 103M3 TOTAL OIL PRODUCTION) | F101: GAS PROCESSING (Gg/ 106M3 RAW GAS FEED) | G101: DEFAULT- RAW CO2 VENTING | H101: 40 | I101: CO2e (TONNE /M3)
B102: 102 | C102: Table 2 | D102: Fugitive Emission Factors | E102: OIL AND NATURAL GAS (Gg/ 103M3 TOTAL OIL PRODUCTION) | F102: GAS TRANSMISSION&STORAGE (Gg/ 106M3 MARKETABLE GAS) | G102: TRANSMISSION – FUGITIVES (low end) | H102: 1.5189 | I102: CO2e (TONNE /M3)
B103: 103 | C103: Table 2 | D103: Fugitive Emission Factors | E103: OIL AND NATURAL GAS (Gg/ 103M3 TOTAL OIL PRODUCTION) | F103: GAS TRANSMISSION&STORAGE (Gg/ 106M3 MARKETABLE GAS) | G103: TRANSMISSION – FUGITIVES (high end) | H103: 11.0409 | I103: CO2e (TONNE /M3)
B104: 104 | C104: Table 2 | D104: Fugitive Emission Factors | E104: OIL AND NATURAL GAS (Gg/ 103M3 TOTAL OIL PRODUCTION) | F104: GAS TRANSMISSION&STORAGE (Gg/ 106M3 MARKETABLE GAS) | G104: TRANSMISSION – VENTING (low end) | H104: 1.0151 | I104: CO2e (TONNE /M3)
B105: 105 | C105: Table 2 | D105: Fugitive Emission Factors | E105: OIL AND NATURAL GAS (Gg/ 103M3 TOTAL OIL PRODUCTION) | F105: GAS TRANSMISSION&STORAGE (Gg/ 106M3 MARKETABLE GAS) | G105: TRANSMISSION – VENTING (high end) | H105: 7.3631 | I105: CO2e (TONNE /M3)
B106: 106 | C106: Table 2 | D106: Fugitive Emission Factors | E106: OIL AND NATURAL GAS (Gg/ 103M3 TOTAL OIL PRODUCTION) | F106: GAS TRANSMISSION&STORAGE (Gg/ 106M3 MARKETABLE GAS) | G106: STORAGE | H106: 0.5751 | I106: CO2e (TONNE /M3)
B107: 107 | C107: Table 2 | D107: Fugitive Emission Factors | E107: OIL AND NATURAL GAS (Gg/ 103M3 TOTAL OIL PRODUCTION) | F107: GAS DISTRIBUTION (Gg/ 106M3 OF UTILITY SALES) | G107: ALL | H107: 25.351 | I107: CO2e (TONNE /M3)
B108: 108 | C108: Table 2 | D108: Fugitive Emission Factors | E108: OIL AND NATURAL GAS (Gg/ 103M3 TOTAL OIL PRODUCTION) | F108: NATURAL GAS LIQUIDS TRANSPORT (Gg/ 103M3 CONDENSATE AND PENTANES PLUS) | G108: CONDENSATE | H108: 2.5372 | I108: CO2e (TONNE /M3)
B109: 109 | C109: Table 2 | D109: Fugitive Emission Factors | E109: OIL AND NATURAL GAS (Gg/ 103M3 TOTAL OIL PRODUCTION) | F109: NATURAL GAS LIQUIDS TRANSPORT (Gg/ 103M3 CONDENSATE AND PENTANES PLUS) | G109: LIQUEFIED PETROLEUM GAS (Gg/ 103M3 LPG) | H109: 0.4307 | I109: CO2e (TONNE /M3)
B110: 110 | C110: Table 2 | D110: Fugitive Emission Factors | E110: OIL AND NATURAL GAS (Gg/ 103M3 TOTAL OIL PRODUCTION) | F110: NATURAL GAS LIQUIDS TRANSPORT (Gg/ 103M3 CONDENSATE AND PENTANES PLUS) | G110: LIQUEFIED NATURAL GAS (Gg/ 106M3 MARKETABLE GAS) | H110: N/A | I110: CO2e (TONNE /M3)
B111: 111 | C111: Table 2 | D111: Fugitive Emission Factors | E111: OIL AND NATURAL GAS (Gg/ 103M3 TOTAL OIL PRODUCTION) | F111: OIL PRODUCTION (Gg/ 103M3 CONVENTIONAL OIL PRODUCTION) | G111: CONVENTIONAL OIL-FUGITIVES (ONSHORE) (low end) | H111: 0.0346 | I111: CO2e (TONNE /M3)
B112: 112 | C112: Table 2 | D112: Fugitive Emission Factors | E112: OIL AND NATURAL GAS (Gg/ 103M3 TOTAL OIL PRODUCTION) | F112: OIL PRODUCTION (Gg/ 103M3 CONVENTIONAL OIL PRODUCTION) | G112: CONVENTIONAL OIL-FUGITIVES (ONSHORE) (high end) | H112: 83.06 | I112: CO2e (TONNE /M3)
B113: 113 | C113: Table 2 | D113: Fugitive Emission Factors | E113: OIL AND NATURAL GAS (Gg/ 103M3 TOTAL OIL PRODUCTION) | F113: OIL PRODUCTION (Gg/ 103M3 CONVENTIONAL OIL PRODUCTION) | G113: CONVENTIONAL OIL-FUGITIVES(OFFSHORE) | H113: 0.0136 | I113: CO2e (TONNE /M3)
B114: 114 | C114: Table 2 | D114: Fugitive Emission Factors | E114: OIL AND NATURAL GAS (Gg/ 103M3 TOTAL OIL PRODUCTION) | F114: OIL PRODUCTION (Gg/ 103M3 CONVENTIONAL OIL PRODUCTION) | G114: CONVENTIONAL OIL-VENTING | H114: 16.655 | I114: CO2e (TONNE /M3)
B115: 115 | C115: Table 2 | D115: Fugitive Emission Factors | E115: OIL AND NATURAL GAS (Gg/ 103M3 TOTAL OIL PRODUCTION) | F115: OIL PRODUCTION (Gg/ 103M3 CONVENTIONAL OIL PRODUCTION) | G115: CONVENTIONAL OIL-FLARING | H115: 41.7644 | I115: CO2e (TONNE /M3)
B116: 116 | C116: Table 2 | D116: Fugitive Emission Factors | E116: OIL AND NATURAL GAS (Gg/ 103M3 TOTAL OIL PRODUCTION) | F116: OIL PRODUCTION (Gg/ 103M3 HEAVY OIL PRODUCTION) | G116: HEAVY OIL/COLD BITUMEN – FUGITIVES | H116: 182.24 | I116: CO2e (TONNE /M3)
B117: 117 | C117: Table 2 | D117: Fugitive Emission Factors | E117: OIL AND NATURAL GAS (Gg/ 103M3 TOTAL OIL PRODUCTION) | F117: OIL PRODUCTION (Gg/ 103M3 HEAVY OIL PRODUCTION) | G117: HEAVY OIL/COLD BITUMEN – VENTING | H117: 396.3 | I117: CO2e (TONNE /M3)
B118: 118 | C118: Table 2 | D118: Fugitive Emission Factors | E118: OIL AND NATURAL GAS (Gg/ 103M3 TOTAL OIL PRODUCTION) | F118: OIL PRODUCTION (Gg/ 103M3 HEAVY OIL PRODUCTION) | G118: HEAVY OIL/COLD BITUMEN – FLARING | H118: 25.3562 | I118: CO2e (TONNE /M3)
B119: 119 | C119: Table 2 | D119: Fugitive Emission Factors | E119: OIL AND NATURAL GAS (Gg/ 103M3 TOTAL OIL PRODUCTION) | F119: OIL PRODUCTION (Gg/ 103M3 THERMAL BITUMEN PRODUCTION) | G119: THERMAL OIL PRODUCTION - FUGITIVES | H119: 4.169 | I119: CO2e (TONNE /M3)
B120: 120 | C120: Table 2 | D120: Fugitive Emission Factors | E120: OIL AND NATURAL GAS (Gg/ 103M3 TOTAL OIL PRODUCTION) | F120: OIL PRODUCTION (Gg/ 103M3 THERMAL BITUMEN PRODUCTION) | G120: THERMAL OIL PRODUCTION – VENTING | H120: 80.72 | I120: CO2e (TONNE /M3)
B121: 121 | C121: Table 2 | D121: Fugitive Emission Factors | E121: OIL AND NATURAL GAS (Gg/ 103M3 TOTAL OIL PRODUCTION) | F121: OIL PRODUCTION (Gg/ 103M3 THERMAL BITUMEN PRODUCTION) | G121: THERMAL OIL PRODUCTION – FLARING | H121: 27.439 | I121: CO2e (TONNE /M3)
B122: 122 | C122: Table 2 | D122: Fugitive Emission Factors | E122: OIL AND NATURAL GAS (Gg/ 103M3 TOTAL OIL PRODUCTION) | F122: OIL PRODUCTION (Gg/ 103M3 SYNTHETIC CRUDE PRODUCTION FROM OILSANDS) | G122: SYNTHETIC CRUDE (FROM OILSANDS) | H122: 52.9 | I122: CO2e (TONNE /M3)
B123: 123 | C123: Table 2 | D123: Fugitive Emission Factors | E123: OIL AND NATURAL GAS (Gg/ 103M3 TOTAL OIL PRODUCTION) | F123: OIL PRODUCTION (Gg/ 103M3 SYNTHETIC CRUDE PRODUCTION FROM OILSANDS) | G123: SYNTHETIC CRUDE (OIL SHALE) | I123: CO2e (TONNE /M3)
B124: 124 | C124: Table 2 | D124: Fugitive Emission Factors | E124: OIL AND NATURAL GAS (Gg/ 103M3 TOTAL OIL PRODUCTION) | F124: OIL PRODUCTION (Gg/ 103M3 TOTAL OIL PRODUCTION) | G124: DEFAULT TOTAL – FUGITIVES | H124: 50.88 | I124: CO2e (TONNE /M3)
B125: 125 | C125: Table 2 | D125: Fugitive Emission Factors | E125: OIL AND NATURAL GAS (Gg/ 103M3 TOTAL OIL PRODUCTION) | F125: OIL PRODUCTION (Gg/ 103M3 TOTAL OIL PRODUCTION) | G125: DEFAULT TOTAL – VENTING | H125: 201.9 | I125: CO2e (TONNE /M3)
B126: 126 | C126: Table 2 | D126: Fugitive Emission Factors | E126: OIL AND NATURAL GAS (Gg/ 103M3 TOTAL OIL PRODUCTION) | F126: OIL PRODUCTION (Gg/ 103M3 TOTAL OIL PRODUCTION) | G126: DEFAULT TOTAL – FLARING | H126: 34.6428 | I126: CO2e (TONNE /M3)
B127: 127 | C127: Table 2 | D127: Fugitive Emission Factors | E127: OIL AND NATURAL GAS (Gg/ 103M3 TOTAL OIL PRODUCTION) | F127: OIL UPGRADING (Gg/ 103M3 OIL UPGRADED) | G127: ALL | I127: CO2e (TONNE /M3)
B128: 128 | C128: Table 2 | D128: Fugitive Emission Factors | E128: OIL AND NATURAL GAS (Gg/ 103M3 TOTAL OIL PRODUCTION) | F128: OIL TRANSPORT (Gg/ 103M3 OIL TRANSPORTED BY PIPELINE) | G128: PIPELINES | H128: 0.1247 | I128: CO2e (TONNE /M3)
B129: 129 | C129: Table 2 | D129: Fugitive Emission Factors | E129: OIL AND NATURAL GAS (Gg/ 103M3 TOTAL OIL PRODUCTION) | F129: OIL TRANSPORT (Gg/ 103M3 OIL TRANSPORTED BY TANKER TRUCK) | G129: TANKER TRUCKS AND RAIL CARS - VENTING | H129: 0.5773 | I129: CO2e (TONNE /M3)
B130: 130 | C130: Table 2 | D130: Fugitive Emission Factors | E130: OIL AND NATURAL GAS (Gg/ 103M3 TOTAL OIL PRODUCTION) | F130: OIL TRANSPORT (Gg/ 103M3 OIL TRANSPORTED BY TANKER SHIPS) | G130: LOADING OFF-SHORE PRODUCTION ON TANKER SHIPS – VENTING | H130: N/A | I130: CO2e (TONNE /M3)
B131: 131 | C131: Table 2 | D131: Fugitive Emission Factors | E131: OIL AND NATURAL GAS (Gg/ 103M3 TOTAL OIL PRODUCTION) | F131: OIL REFINING (Gg/ 103M3 OIL REFINED) | G131: ALL (low end) | H131: 0.0598 | I131: CO2e (TONNE /M3)
B132: 132 | C132: Table 2 | D132: Fugitive Emission Factors | E132: OIL AND NATURAL GAS (Gg/ 103M3 TOTAL OIL PRODUCTION) | F132: OIL REFINING (Gg/ 103M3 OIL REFINED) | G132: ALL (high end) | H132: 0.943 | I132: CO2e (TONNE /M3)
B133: 133 | C133: Table 3 | D133: Industrial Process and Product Use (IPPU) Emission Factors | F133: CEMENT PRODUCTION (PER TONNE OF CLINKER) | G133: CEMENT | H133: 0.52 | I133: (CO2e) PER TONNE
B134: 134 | C134: Table 3 | D134: Industrial Process and Product Use (IPPU) Emission Factors | F134: LIME PRODUCTION (PER TONNE OF LIME) | G134: QUICKLIME/HIGH CALCIUM LIME | H134: 0.75 | I134: (CO2e) PER TONNE
B135: 135 | C135: Table 3 | D135: Industrial Process and Product Use (IPPU) Emission Factors | F135: LIME PRODUCTION (PER TONNE OF LIME) | G135: DOLOMITIC LIME | H135: 0.77 | I135: (CO2e) PER TONNE
B136: 136 | C136: Table 3 | D136: Industrial Process and Product Use (IPPU) Emission Factors | F136: LIME PRODUCTION (PER TONNE OF LIME) | G136: HYDRATED LIME | H136: 0.59 | I136: (CO2e) PER TONNE
B137: 137 | C137: Table 3 | D137: Industrial Process and Product Use (IPPU) Emission Factors | F137: GLASS PRODUCTION (PER TONNE GLASS) | G137: GLASS PRODUCTION | H137: 0.2 | I137: (CO2e) PER TONNE
B138: 138 | C138: Table 3 | D138: Industrial Process and Product Use (IPPU) Emission Factors | F138: CERAMICS (PER TONNE CARBONATE) | G138: CALCITE/ARAGONITE (CACO3) | H138: 0.4397 | I138: (CO2e) PER TONNE
B139: 139 | C139: Table 3 | D139: Industrial Process and Product Use (IPPU) Emission Factors | F139: CERAMICS (PER TONNE CARBONATE) | G139: MAGNESITE (MGCO3) | H139: 0.522 | I139: (CO2e) PER TONNE
B140: 140 | C140: Table 3 | D140: Industrial Process and Product Use (IPPU) Emission Factors | F140: CERAMICS (PER TONNE CARBONATE) | G140: DOLOMITE (CaMg(CO3)2)) | H140: 0.4773 | I140: (CO2e) PER TONNE
B141: 141 | C141: Table 3 | D141: Industrial Process and Product Use (IPPU) Emission Factors | F141: CERAMICS (PER TONNE CARBONATE) | G141: SIDERITE (FeCO3) | H141: 0.3799 | I141: (CO2e) PER TONNE
B142: 142 | C142: Table 3 | D142: Industrial Process and Product Use (IPPU) Emission Factors | F142: CERAMICS (PER TONNE CARBONATE) | G142: ANKERITE (Ca(Fe,Mg,Mn)(CO3)2))) (low end) | H142: 0.4082 | I142: (CO2e) PER TONNE
B143: 143 | C143: Table 3 | D143: Industrial Process and Product Use (IPPU) Emission Factors | F143: CERAMICS (PER TONNE CARBONATE) | G143: ANKERITE (Ca(Fe,Mg,Mn)(CO3)2))) (high end) | H143: 0.4757 | I143: (CO2e) PER TONNE
B144: 144 | C144: Table 3 | D144: Industrial Process and Product Use (IPPU) Emission Factors | F144: CERAMICS (PER TONNE CARBONATE) | G144: RHODOCHROSITE (MnCO3) | H144: 0.3829 | I144: (CO2e) PER TONNE
B145: 145 | C145: Table 3 | D145: Industrial Process and Product Use (IPPU) Emission Factors | F145: CERAMICS (PER TONNE CARBONATE) | G145: SODIUM CARBONATE/SODA ASH (NA2CO3) | H145: 0.4149 | I145: (CO2e) PER TONNE
B146: 146 | C146: Table 3 | D146: Industrial Process and Product Use (IPPU) Emission Factors | F146: OTHER USES OF SODA ASH (PER TONNE CARBONATE) | G146: CALCITE/ARAGONITE (CACO3) | H146: 0.4397 | I146: (CO2e) PER TONNE
B147: 147 | C147: Table 3 | D147: Industrial Process and Product Use (IPPU) Emission Factors | F147: OTHER USES OF SODA ASH (PER TONNE CARBONATE) | G147: MAGNESITE (MGCO3) | H147: 0.522 | I147: (CO2e) PER TONNE
B148: 148 | C148: Table 3 | D148: Industrial Process and Product Use (IPPU) Emission Factors | F148: OTHER USES OF SODA ASH (PER TONNE CARBONATE) | G148: DOLOMITE (CaMg(CO3)2)) | H148: 0.4773 | I148: (CO2e) PER TONNE
B149: 149 | C149: Table 3 | D149: Industrial Process and Product Use (IPPU) Emission Factors | F149: OTHER USES OF SODA ASH (PER TONNE CARBONATE) | G149: SIDERITE (FeCO3) | H149: 0.3799 | I149: (CO2e) PER TONNE
B150: 150 | C150: Table 3 | D150: Industrial Process and Product Use (IPPU) Emission Factors | F150: OTHER USES OF SODA ASH (PER TONNE CARBONATE) | G150: ANKERITE (Ca(Fe,Mg,Mn)(CO3)2))) (low end) | H150: 0.4082 | I150: (CO2e) PER TONNE
B151: 151 | C151: Table 3 | D151: Industrial Process and Product Use (IPPU) Emission Factors | F151: OTHER USES OF SODA ASH (PER TONNE CARBONATE) | G151: ANKERITE (Ca(Fe,Mg,Mn)(CO3)2))) (high end) | H151: 0.4757 | I151: (CO2e) PER TONNE
B152: 152 | C152: Table 3 | D152: Industrial Process and Product Use (IPPU) Emission Factors | F152: OTHER USES OF SODA ASH (PER TONNE CARBONATE) | G152: RHODOCHROSITE (MnCO3) | H152: 0.3829 | I152: (CO2e) PER TONNE
B153: 153 | C153: Table 3 | D153: Industrial Process and Product Use (IPPU) Emission Factors | F153: OTHER USES OF SODA ASH (PER TONNE CARBONATE) | G153: SODIUM CARBONATE/SODA ASH (NA2CO3) | H153: 0.4149 | I153: (CO2e) PER TONNE
B154: 154 | C154: Table 3 | D154: Industrial Process and Product Use (IPPU) Emission Factors | F154: NON METALLURGICAL MAGNESIA PRODUCTION (PER TONNE CARBONATE) | G154: CALCITE/ARAGONITE (CACO3) | H154: 0.4397 | I154: (CO2e) PER TONNE
B155: 155 | C155: Table 3 | D155: Industrial Process and Product Use (IPPU) Emission Factors | F155: NON METALLURGICAL MAGNESIA PRODUCTION (PER TONNE CARBONATE) | G155: MAGNESITE (MGCO3) | H155: 0.522 | I155: (CO2e) PER TONNE
B156: 156 | C156: Table 3 | D156: Industrial Process and Product Use (IPPU) Emission Factors | F156: NON METALLURGICAL MAGNESIA PRODUCTION (PER TONNE CARBONATE) | G156: DOLOMITE (CaMg(CO3)2)) | H156: 0.4773 | I156: (CO2e) PER TONNE
B157: 157 | C157: Table 3 | D157: Industrial Process and Product Use (IPPU) Emission Factors | F157: NON METALLURGICAL MAGNESIA PRODUCTION (PER TONNE CARBONATE) | G157: SIDERITE (FeCO3) | H157: 0.3799 | I157: (CO2e) PER TONNE
B158: 158 | C158: Table 3 | D158: Industrial Process and Product Use (IPPU) Emission Factors | F158: NON METALLURGICAL MAGNESIA PRODUCTION (PER TONNE CARBONATE) | G158: ANKERITE (Ca(Fe,Mg,Mn)(CO3)2))) (low end) | H158: 0.4082 | I158: (CO2e) PER TONNE
B159: 159 | C159: Table 3 | D159: Industrial Process and Product Use (IPPU) Emission Factors | F159: NON METALLURGICAL MAGNESIA PRODUCTION (PER TONNE CARBONATE) | G159: ANKERITE (Ca(Fe,Mg,Mn)(CO3)2))) (high end) | H159: 0.4757 | I159: (CO2e) PER TONNE
B160: 160 | C160: Table 3 | D160: Industrial Process and Product Use (IPPU) Emission Factors | F160: NON METALLURGICAL MAGNESIA PRODUCTION (PER TONNE CARBONATE) | G160: RHODOCHROSITE (MnCO3) | H160: 0.3829 | I160: (CO2e) PER TONNE
B161: 161 | C161: Table 3 | D161: Industrial Process and Product Use (IPPU) Emission Factors | F161: NON METALLURGICAL MAGNESIA PRODUCTION (PER TONNE CARBONATE) | G161: SODIUM CARBONATE/SODA ASH (NA2CO3) | H161: 0.4149 | I161: (CO2e) PER TONNE
B162: 162 | C162: Table 3 | D162: Industrial Process and Product Use (IPPU) Emission Factors | F162: OTHER (PER TONNE CARBONATE) | G162: CALCITE/ARAGONITE (CACO3) | H162: 0.4397 | I162: (CO2e) PER TONNE
B163: 163 | C163: Table 3 | D163: Industrial Process and Product Use (IPPU) Emission Factors | F163: OTHER (PER TONNE CARBONATE) | G163: MAGNESITE (MGCO3) | H163: 0.522 | I163: (CO2e) PER TONNE
B164: 164 | C164: Table 3 | D164: Industrial Process and Product Use (IPPU) Emission Factors | F164: OTHER (PER TONNE CARBONATE) | G164: DOLOMITE (CaMg(CO3)2)) | H164: 0.4773 | I164: (CO2e) PER TONNE
B165: 165 | C165: Table 3 | D165: Industrial Process and Product Use (IPPU) Emission Factors | F165: OTHER (PER TONNE CARBONATE) | G165: SIDERITE (FeCO3) | H165: 0.3799 | I165: (CO2e) PER TONNE
B166: 166 | C166: Table 3 | D166: Industrial Process and Product Use (IPPU) Emission Factors | F166: OTHER (PER TONNE CARBONATE) | G166: ANKERITE (Ca(Fe,Mg,Mn)(CO3)2))) (low end) | H166: 0.4082 | I166: (CO2e) PER TONNE
B167: 167 | C167: Table 3 | D167: Industrial Process and Product Use (IPPU) Emission Factors | F167: OTHER (PER TONNE CARBONATE) | G167: ANKERITE (Ca(Fe,Mg,Mn)(CO3)2))) (high end) | H167: 0.4757 | I167: (CO2e) PER TONNE
B168: 168 | C168: Table 3 | D168: Industrial Process and Product Use (IPPU) Emission Factors | F168: OTHER (PER TONNE CARBONATE) | G168: RHODOCHROSITE (MnCO3) | H168: 0.3829 | I168: (CO2e) PER TONNE
B169: 169 | C169: Table 3 | D169: Industrial Process and Product Use (IPPU) Emission Factors | F169: OTHER (PER TONNE CARBONATE) | G169: SODIUM CARBONATE/SODA ASH (NA2CO3) | H169: 0.4149 | I169: (CO2e) PER TONNE
B170: 170 | C170: Table 3 | D170: Industrial Process and Product Use (IPPU) Emission Factors | F170: AMMONIA PRODUCTION (PER TONNE NH3) | G170: MODERN PLANTS-CONVENTIONAL REFORMING (NATURAL GAS) | H170: 1.694 | I170: (CO2e) PER TONNE
B171: 171 | C171: Table 3 | D171: Industrial Process and Product Use (IPPU) Emission Factors | F171: AMMONIA PRODUCTION (PER TONNE NH3) | G171: EXCESS AIR REFORMING (NATURAL GAS) | H171: 1.666 | I171: (CO2e) PER TONNE
B172: 172 | C172: Table 3 | D172: Industrial Process and Product Use (IPPU) Emission Factors | F172: AMMONIA PRODUCTION (PER TONNE NH3) | G172: AUTOTHERMAL REFORMING (NATURAL GAS) | H172: 1.694 | I172: (CO2e) PER TONNE
B173: 173 | C173: Table 3 | D173: Industrial Process and Product Use (IPPU) Emission Factors | F173: AMMONIA PRODUCTION (PER TONNE NH3) | G173: PARTIAL OXIDATION | H173: 2.772 | I173: (CO2e) PER TONNE
B174: 174 | C174: Table 3 | D174: Industrial Process and Product Use (IPPU) Emission Factors | F174: AMMONIA PRODUCTION (PER TONNE NH3) | G174: AVERAGE VALUE NATURAL GAS (MIXTURE OF MODERN &OLD) | H174: 2.104 | I174: (CO2e) PER TONNE
B175: 175 | C175: Table 3 | D175: Industrial Process and Product Use (IPPU) Emission Factors | F175: AMMONIA PRODUCTION (PER TONNE NH3) | G175: AVERAGE VALUE (PARTIAL OXIDATION) | H175: 3.273 | I175: (CO2e) PER TONNE
B176: 176 | C176: Table 3 | D176: Industrial Process and Product Use (IPPU) Emission Factors | F176: NITRIC ACID PRODUCTION (PER TONNE NITRIC ACID) | G176: PLANTS WITH NSCR (ALL PROCESSES) | H176: 0.592 | I176: (CO2e) PER TONNE
B177: 177 | C177: Table 3 | D177: Industrial Process and Product Use (IPPU) Emission Factors | F177: NITRIC ACID PRODUCTION (PER TONNE NITRIC ACID) | G177: PLANTS WITH PROCESS (INTEGRATED OR TAILGAS NO2 DESTRUCTION) | H177: 0.74 | I177: (CO2e) PER TONNE
B178: 178 | C178: Table 3 | D178: Industrial Process and Product Use (IPPU) Emission Factors | F178: NITRIC ACID PRODUCTION (PER TONNE NITRIC ACID) | G178: ATMOSPHERIC PRESSURE PLANTS (LOW PRESSURE PLANTS) | H178: 1.48 | I178: (CO2e) PER TONNE
B179: 179 | C179: Table 3 | D179: Industrial Process and Product Use (IPPU) Emission Factors | F179: NITRIC ACID PRODUCTION (PER TONNE NITRIC ACID) | G179: MEDIUM PRESSURE COMBUSTION PLANTS (MEDIUM PRESSURE) | H179: 2.072 | I179: (CO2e) PER TONNE
B180: 180 | C180: Table 3 | D180: Industrial Process and Product Use (IPPU) Emission Factors | F180: NITRIC ACID PRODUCTION (PER TONNE NITRIC ACID) | G180: HIGH PRESSURE PLANTS (HIGH PRESSURE) | H180: 2.664 | I180: (CO2e) PER TONNE
B181: 181 | C181: Table 3 | D181: Industrial Process and Product Use (IPPU) Emission Factors | F181: ADIPIC ACID PRODUCTION (PER TONNE ADIPIC ACID UNCONTROLLED) | G181: NITRIC ACID OXIDATION (ADIPIC ACID) | H181: 88.8 | I181: (CO2e) PER TONNE
B182: 182 | C182: Table 3 | D182: Industrial Process and Product Use (IPPU) Emission Factors | F182: CAPROLACTAM,GLYOXAL AND GLYOXYLIC ACID PRODUCTION (PER TONNE PRODUCED) | G182: CAPROLACTAM PRODUCTION (RASCHIG) | H182: 2.664 | I182: (CO2e) PER TONNE
B183: 183 | C183: Table 3 | D183: Industrial Process and Product Use (IPPU) Emission Factors | F183: CAPROLACTAM,GLYOXAL AND GLYOXYLIC ACID PRODUCTION (PER TONNE PRODUCED) | G183: GLYOXAL PRODUCTION | H183: 0.0296 | I183: (CO2e) PER TONNE
B184: 184 | C184: Table 3 | D184: Industrial Process and Product Use (IPPU) Emission Factors | F184: CAPROLACTAM,GLYOXAL AND GLYOXYLIC ACID PRODUCTION (PER TONNE PRODUCED) | G184: GLYOXYLIC ACID PRODUCTION | H184: 0.0059 | I184: (CO2e) PER TONNE
B185: 185 | C185: Table 3 | D185: Industrial Process and Product Use (IPPU) Emission Factors | F185: CARBIDE PRODUCTION (PER TONNE RAW MATERIAL USED) | G185: SILICON CARBIDE PRODUCTION | H185: 2.5346 | I185: (CO2e) PER TONNE
B186: 186 | C186: Table 3 | D186: Industrial Process and Product Use (IPPU) Emission Factors | F186: CARBIDE PRODUCTION (PER TONNE RAW MATERIAL USED) | G186: PETROLEUM COKE USE | H186: 1.7 | I186: (CO2e) PER TONNE
B187: 187 | C187: Table 3 | D187: Industrial Process and Product Use (IPPU) Emission Factors | F187: CARBIDE PRODUCTION (PER TONNE CARBIDE PRODUCED) | G187: SILICON CARBIDE PRODUCTION (CARBIDE PRODUCED) | H187: 2.8868 | I187: (CO2e) PER TONNE
B188: 188 | C188: Table 3 | D188: Industrial Process and Product Use (IPPU) Emission Factors | F188: CARBIDE PRODUCTION (PER TONNE CARBIDE PRODUCED) | G188: PETROLEUM COKE USE | H188: 1.09 | I188: (CO2e) PER TONNE
B189: 189 | C189: Table 3 | D189: Industrial Process and Product Use (IPPU) Emission Factors | F189: CARBIDE PRODUCTION (PER TONNE CARBIDE PRODUCED) | G189: USE OF PRODUCT | H189: 1.1 | I189: (CO2e) PER TONNE
B190: 190 | C190: Table 3 | D190: Industrial Process and Product Use (IPPU) Emission Factors | F190: TITANIUM DIOXIDE PRODUCTION (PER TONNE PRODUCT) | G190: TITANIUM SLAG | I190: (CO2e) PER TONNE
B191: 191 | C191: Table 3 | D191: Industrial Process and Product Use (IPPU) Emission Factors | F191: TITANIUM DIOXIDE PRODUCTION (PER TONNE PRODUCT) | G191: SYNTHETIC RUTILE | H191: 1.43 | I191: (CO2e) PER TONNE
B192: 192 | C192: Table 3 | D192: Industrial Process and Product Use (IPPU) Emission Factors | F192: TITANIUM DIOXIDE PRODUCTION (PER TONNE PRODUCT) | G192: RUTILE TITANIUM DIOXIDE (CHLORIDE ROUTE) | H192: 1.34 | I192: (CO2e) PER TONNE
B193: 193 | C193: Table 3 | D193: Industrial Process and Product Use (IPPU) Emission Factors | F193: SODA ASH PRODUCTION (PER TONNE OF SODA ASH OR TRONA) | G193: NATURAL SODA ASH OUTPUT | H193: 0.138 | I193: (CO2e) PER TONNE
B194: 194 | C194: Table 3 | D194: Industrial Process and Product Use (IPPU) Emission Factors | F194: SODA ASH PRODUCTION (PER TONNE OF SODA ASH OR TRONA) | G194: NATURAL SODA ASH (TRONA USED) | H194: 0.097 | I194: (CO2e) PER TONNE
B195: 195 | C195: Table 3 | D195: Industrial Process and Product Use (IPPU) Emission Factors | E195: PETROCHEMICAL AND CARBON BLACK PRODUCTION | F195: METHANOL PRODUCTION (PER TONNE METHANOL PRODUCED) | G195: CONVENTIONAL STEAM REFORMING WITHOUT PRIMARY REFORMER (NATURAL GAS FEEDSTOCK) | H195: 0.7229 | I195: (CO2e) PER TONNE
B196: 196 | C196: Table 3 | D196: Industrial Process and Product Use (IPPU) Emission Factors | E196: PETROCHEMICAL AND CARBON BLACK PRODUCTION | F196: METHANOL PRODUCTION (PER TONNE METHANOL PRODUCED) | G196: CONVENTIONAL STEAM REFORMING WITH PRIMARY REFORMER (NATURAL GAS FEEDSTOCK) | H196: 0.5499 | I196: (CO2e) PER TONNE
B197: 197 | C197: Table 3 | D197: Industrial Process and Product Use (IPPU) Emission Factors | E197: PETROCHEMICAL AND CARBON BLACK PRODUCTION | F197: METHANOL PRODUCTION (PER TONNE METHANOL PRODUCED) | G197: CONVENTIONAL STEAM REFORMING LURGI CONVENTIONAL PROCESS (NATURAL GAS FEEDSTOCK) | H197: 0.4379 | I197: (CO2e) PER TONNE
B198: 198 | C198: Table 3 | D198: Industrial Process and Product Use (IPPU) Emission Factors | E198: PETROCHEMICAL AND CARBON BLACK PRODUCTION | F198: METHANOL PRODUCTION (PER TONNE METHANOL PRODUCED) | G198: CONVENTIONAL STEAM REFORMING LURGI CONVENTIONAL PROCESS (NATURAL GAS+CO2 FEEDSTOCK) | H198: 0.3199 | I198: (CO2e) PER TONNE
B199: 199 | C199: Table 3 | D199: Industrial Process and Product Use (IPPU) Emission Factors | E199: PETROCHEMICAL AND CARBON BLACK PRODUCTION | F199: METHANOL PRODUCTION (PER TONNE METHANOL PRODUCED) | G199: CONVENTIONAL STEAM REFORMING LURGI LOW PRESSURE PROCESS (NATURAL GAS FEEDSTOCK) | H199: 0.3199 | I199: (CO2e) PER TONNE
B200: 200 | C200: Table 3 | D200: Industrial Process and Product Use (IPPU) Emission Factors | E200: PETROCHEMICAL AND CARBON BLACK PRODUCTION | F200: METHANOL PRODUCTION (PER TONNE METHANOL PRODUCED) | G200: CONVENTIONAL STEAM REFORMING LURGI COMBINED PROCESS (NATURAL GAS FEEDSTOCK) | H200: 0.4489 | I200: (CO2e) PER TONNE
B201: 201 | C201: Table 3 | D201: Industrial Process and Product Use (IPPU) Emission Factors | E201: PETROCHEMICAL AND CARBON BLACK PRODUCTION | F201: METHANOL PRODUCTION (PER TONNE METHANOL PRODUCED) | G201: CONVENTIONAL STEAM REFORMING LURGI MEGA METHANOL PROCESS (NATURAL GAS FEEDSTOCK) | H201: 0.3629 | I201: (CO2e) PER TONNE
B202: 202 | C202: Table 3 | D202: Industrial Process and Product Use (IPPU) Emission Factors | E202: PETROCHEMICAL AND CARBON BLACK PRODUCTION | F202: METHANOL PRODUCTION (PER TONNE METHANOL PRODUCED) | G202: PARTIAL OXIDATION PROCESS (OIL FEEDSTOCK) | H202: 1.4289 | I202: (CO2e) PER TONNE
B203: 203 | C203: Table 3 | D203: Industrial Process and Product Use (IPPU) Emission Factors | E203: PETROCHEMICAL AND CARBON BLACK PRODUCTION | F203: METHANOL PRODUCTION (PER TONNE METHANOL PRODUCED) | G203: PARTIAL OXIDATION PROCESS (COAL FEEDSTOCK) | H203: 5.3379 | I203: (CO2e) PER TONNE
... 68 more rows

Sheet Schedule 2 (hidden)
B2: SCHEDULE 2 Carbon Tax draft Bill
D8: Sector | E8: Basic tax-free allowance for fossil fuel combustion emissions % | F8: Basic tax-free allowance for process emissions % | G8: Fugitive emissions allowance % | H8: Trade exposure allowance % | I8: Z-factor allowance % | J8: Carbon budget allowance % | K8: Offsets allowance % | L8: Maximum total allowances %
B9: Fuel combustion | C9: Energy Industries | D9: Main activity electricity and heat production | E9: 60 | F9: 0 | G9: 0 | H9: 0 | I9: 0 | J9: 5 | K9: 10 | L9: 75
B10: Fuel combustion | C10: Energy Industries | D10: Petroleum refining | E10: 60 | F10: 0 | G10: 0 | H10: 10 | I10: 5 | J10: 5 | K10: 10 | L10: 90
B11: Fuel combustion | C11: Energy Industries | D11: Manufacture of solid fuels & other energy industries | E11: 60 | F11: 0 | G11: 0 | H11: 10 | I11: 5 | J11: 5 | K11: 10 | L11: 90
B12: Fuel combustion | C12: Energy Industries | D12: Manufacturing industries and Construction | E12: 60 | F12: 0 | G12: 0 | H12: 10 | I12: 5 | J12: 5 | K12: 10 | L12: 90
B13: Fuel combustion | C13: Energy Industries | D13: Iron and steel | E13: 60 | F13: 0 | G13: 0 | H13: 10 | I13: 5 | J13: 5 | K13: 10 | L13: 90
B14: Fuel combustion | C14: Energy Industries | D14: Non-ferrous metals energy | E14: 60 | F14: 0 | G14: 0 | H14: 10 | I14: 5 | J14: 5 | K14: 10 | L14: 90
B15: Fuel combustion | C15: Energy Industries | D15: Chemicals | E15: 60 | F15: 0 | G15: 0 | H15: 10 | I15: 5 | J15: 5 | K15: 10 | L15: 90
B16: Fuel combustion | C16: Energy Industries | D16: Pulp, paper and print | E16: 60 | F16: 0 | G16: 0 | H16: 10 | I16: 5 | J16: 5 | K16: 10 | L16: 90
B17: Fuel combustion | C17: Energy Industries | D17: Food processing; beverage; tobacco | E17: 60 | F17: 0 | G17: 0 | H17: 10 | I17: 5 | J17: 5 | K17: 10 | L17: 90
B18: Fuel combustion | C18: Energy Industries | D18: Non-metallic minerals | E18: 60 | F18: 0 | G18: 0 | H18: 10 | I18: 5 | J18: 5 | K18: 10 | L18: 90
B19: Fuel combustion | C19: Energy Industries | D19: Transport Equipment | E19: 60 | F19: 0 | G19: 0 | H19: 10 | I19: 5 | J19: 5 | K19: 10 | L19: 90
B20: Fuel combustion | C20: Energy Industries | D20: Machinery | E20: 60 | F20: 0 | G20: 0 | H20: 10 | I20: 5 | J20: 5 | K20: 10 | L20: 90
B21: Fuel combustion | C21: Energy Industries | D21: Mining (excluding fuels) and quarrying | E21: 60 | F21: 0 | G21: 0 | H21: 10 | I21: 5 | J21: 5 | K21: 10 | L21: 90
B22: Fuel combustion | C22: Energy Industries | D22: Wood and wood products | E22: 60 | F22: 0 | G22: 0 | H22: 10 | I22: 5 | J22: 5 | K22: 10 | L22: 90
B23: Fuel combustion | C23: Energy Industries | D23: Construction | E23: 60 | F23: 0 | G23: 0 | H23: 10 | I23: 5 | J23: 5 | K23: 10 | L23: 90
B24: Fuel combustion | C24: Energy Industries | D24: Textiles and leather | E24: 60 | F24: 0 | G24: 0 | H24: 10 | I24: 5 | J24: 5 | K24: 10 | L24: 90
B25: Fuel combustion | C25: Energy Industries | D25: Non-specified industry | E25: 60 | F25: 0 | G25: 0 | H25: 10 | I25: 5 | J25: 5 | K25: 10 | L25: 90
B26: Fuel combustion | C26: Transport | D26: Civil aviation | E26: 60 | F26: 0 | G26: 0 | H26: 10 | I26: 5 | J26: 5 | K26: 10 | L26: 90
B27: Fuel combustion | C27: Transport | D27: Road transport | E27: 60 | F27: 0 | G27: 0 | H27: 10 | I27: 5 | J27: 5 | K27: 10 | L27: 90
B28: Fuel combustion | C28: Transport | D28: Railways | E28: 60 | F28: 0 | G28: 0 | H28: 10 | I28: 5 | J28: 5 | K28: 10 | L28: 90
B29: Fuel combustion | C29: Transport | D29: Water-borne navigation | E29: 60 | F29: 0 | G29: 0 | H29: 10 | I29: 5 | J29: 5 | K29: 10 | L29: 90
B30: Fuel combustion | C30: Transport | D30: Other transport | E30: 60 | F30: 0 | G30: 0 | H30: 10 | I30: 5 | J30: 5 | K30: 10 | L30: 90
B31: Fuel combustion | C31: Transport | D31: Other Sectors | E31: 60 | F31: 0 | G31: 0 | H31: 10 | I31: 5 | J31: 5 | K31: 10 | L31: 90
B32: Fuel combustion | C32: Transport | D32: Commercial; institutional | E32: 60 | F32: 0 | G32: 0 | H32: 10 | I32: 5 | J32: 5 | K32: 10 | L32: 90
B33: Fuel combustion | C33: Transport | D33: Residential | E33: 100 | F33: 0 | G33: 0 | H33: 0 | I33: 0 | J33: 0 | K33: 0 | L33: 100
B34: Fuel combustion | C34: Transport | D34: Agriculture; forestry; fishing/Fish farms | E34: 60 | F34: 0 | G34: 0 | H34: 10 | I34: 5 | J34: 5 | K34: 10 | L34: 90
B35: Fuel combustion | C35: Non-specified | D35: Stationary | E35: 60 | F35: 0 | G35: 0 | H35: 10 | I35: 5 | J35: 5 | K35: 10 | L35: 90
B36: Fuel combustion | C36: Non-specified | D36: Mobile | E36: 60 | F36: 0 | G36: 0 | H36: 10 | I36: 5 | J36: 5 | K36: 10 | L36: 90
B37: Fuel combustion | C37: Non-specified | D37: Multilateral operations | E37: 60 | F37: 0 | G37: 0 | H37: 10 | I37: 5 | J37: 5 | K37: 10 | L37: 90
B38: Fugitive emissions from fuels | C38: Solid Fuels | D38: Coal mining and handling | E38: 60 | F38: 0 | G38: 10 | H38: 10 | I38: 5 | J38: 5 | K38: 5 | L38: 95
B39: Fugitive emissions from fuels | C39: Solid Fuels | D39: Oil and natural gas | E39: 60 | F39: 0 | G39: 10 | H39: 10 | I39: 5 | J39: 5 | K39: 5 | L39: 95
B40: Fugitive emissions from fuels | C40: Oil | D40: Venting | E40: 60 | F40: 0 | G40: 10 | H40: 10 | I40: 5 | J40: 5 | K40: 5 | L40: 95
B41: Fugitive emissions from fuels | C41: Oil | D41: Flaring | E41: 60 | F41: 0 | G41: 10 | H41: 10 | I41: 5 | J41: 5 | K41: 5 | L41: 95
B42: Fugitive emissions from fuels | C42: Oil | D42: All Other | E42: 60 | F42: 0 | G42: 10 | H42: 10 | I42: 5 | J42: 5 | K42: 5 | L42: 95
B43: Fugitive emissions from fuels | C43: Oil | D43: Natural Gas | E43: 60 | F43: 0 | G43: 10 | H43: 10 | I43: 5 | J43: 5 | K43: 5 | L43: 95
B44: Fugitive emissions from fuels | C44: Other fugitive emissions from Energy Production | D44: Coal-to-liquids processes | E44: 60 | F44: 0 | G44: 10 | H44: 10 | I44: 5 | J44: 5 | K44: 5 | L44: 95
B45: Fugitive emissions from fuels | C45: Other fugitive emissions from Energy Production | D45: Gas-to-liquids processes | E45: 60 | F45: 0 | G45: 10 | H45: 10 | I45: 5 | J45: 5 | K45: 5 | L45: 95
B46: Fugitive emissions from fuels | C46: Other fugitive emissions from Energy Production | D46: Charcoal Production processes | E46: 60 | F46: 0 | G46: 10 | H46: 10 | I46: 5 | J46: 5 | K46: 5 | L46: 95
B47: Fugitive emissions from fuels | C47: Other fugitive emissions from Energy Production | D47: Coke production | E47: 60 | F47: 0 | G47: 10 | H47: 10 | I47: 5 | J47: 5 | K47: 5 | L47: 95
B48: Industrial processes and product use | C48: Mineral Industry | D48: Cement production | E48: 0 | F48: 70 | G48: 0 | H48: 10 | I48: 5 | J48: 5 | K48: 5 | L48: 95
B49: Industrial processes and product use | C49: Mineral Industry | D49: Lime Production | E49: 0 | F49: 70 | G49: 0 | H49: 10 | I49: 5 | J49: 5 | K49: 5 | L49: 95
B50: Industrial processes and product use | C50: Mineral Industry | D50: Glass Production | E50: 0 | F50: 70 | G50: 0 | H50: 10 | I50: 5 | J50: 5 | K50: 5 | L50: 95
B51: Industrial processes and product use | C51: Mineral Industry | D51: Other process uses of carbonates | E51: 0 | F51: 60 | G51: 0 | H51: 10 | I51: 5 | J51: 5 | K51: 10 | L51: 90
B52: Industrial processes and product use | C52: Chemical industry | D52: Ammonia production | E52: 0 | F52: 70 | G52: 0 | H52: 10 | I52: 5 | J52: 5 | K52: 5 | L52: 95
B53: Industrial processes and product use | C53: Chemical industry | D53: Nitric acid production | E53: 0 | F53: 70 | G53: 0 | H53: 10 | I53: 5 | J53: 5 | K53: 5 | L53: 95
B54: Industrial processes and product use | C54: Chemical industry | D54: Adipic acid production | E54: 0 | F54: 70 | G54: 0 | H54: 10 | I54: 5 | J54: 5 | K54: 5 | L54: 95
B55: Industrial processes and product use | C55: Chemical industry | D55: Caprolactam, Glyoxal and Glyoxylic acid production | E55: 0 | F55: 70 | G55: 0 | H55: 10 | I55: 5 | J55: 5 | K55: 5 | L55: 95
B56: Industrial processes and product use | C56: Chemical industry | D56: Carbide production | E56: 0 | F56: 70 | G56: 0 | H56: 10 | I56: 5 | J56: 5 | K56: 5 | L56: 95
B57: Industrial processes and product use | C57: Chemical industry | D57: Titanium Dioxide production | E57: 0 | F57: 70 | G57: 0 | H57: 10 | I57: 5 | J57: 5 | K57: 5 | L57: 95
B58: Industrial processes and product use | C58: Chemical industry | D58: Soda ash production | E58: 0 | F58: 70 | G58: 0 | H58: 10 | I58: 5 | J58: 5 | K58: 5 | L58: 95
B59: Industrial processes and product use | C59: Chemical industry | D59: Petrochemical and Carbon Black production | E59: 0 | F59: 70 | G59: 0 | H59: 10 | I59: 5 | J59: 5 | K59: 5 | L59: 95
B60: Industrial processes and product use | C60: Chemical industry | D60: Fluorochemical Production | E60: 0 | F60: 70 | G60: 0 | H60: 10 | I60: 5 | J60: 5 | K60: 5 | L60: 95
B61: Industrial processes and product use | C61: Metal Industry | D61: Iron and steel production | E61: 0 | F61: 70 | G61: 0 | H61: 10 | I61: 5 | J61: 5 | K61: 5 | L61: 95
B62: Industrial processes and product use | C62: Metal Industry | D62: Ferroalloys production | E62: 0 | F62: 70 | G62: 0 | H62: 10 | I62: 5 | J62: 5 | K62: 5 | L62: 95
B63: Industrial processes and product use | C63: Metal Industry | D63: Aluminium production | E63: 0 | F63: 60 | G63: 0 | H63: 10 | I63: 5 | J63: 5 | K63: 10 | L63: 90
B64: Industrial processes and product use | C64: Metal Industry | D64: Magnesium production | E64: 0 | F64: 60 | G64: 0 | H64: 10 | I64: 5 | J64: 5 | K64: 10 | L64: 90
B65: Industrial processes and product use | C65: Metal Industry | D65: Lead production | E65: 0 | F65: 60 | G65: 0 | H65: 10 | I65: 5 | J65: 5 | K65: 10 | L65: 90
B66: Industrial processes and product use | C66: Metal Industry | D66: Zinc production | E66: 0 | F66: 60 | G66: 0 | H66: 10 | I66: 5 | J66: 5 | K66: 10 | L66: 90
B67: Industrial processes and product use | C67: Metal Industry | D67: Non-energy use of fuels and solvent use | E67: 0 | F67: 60 | H67: 10 | I67: 5 | J67: 5 | K67: 10 | L67: 90
B68: Industrial processes and product use | C68: Metal Industry | D68: Electronics Industry | E68: 0 | F68: 60 | H68: 10 | I68: 5 | J68: 5 | K68: 10 | L68: 90
B69: Industrial processes and product use | C69: Metal Industry | D69: Product uses as substitutes for ozone depleting substances | E69: 0 | F69: 60 | H69: 10 | I69: 5 | J69: 5 | K69: 10 | L69: 90
B70: Industrial processes and product use | C70: Metal Industry | D70: Refrigeration and air conditioning | E70: 0 | F70: 60 | G70: 0 | H70: 10 | I70: 5 | J70: 5 | K70: 10 | L70: 90
B71: Industrial processes and product use | C71: Metal Industry | D71: Foam blowing agents | E71: 0 | F71: 60 | G71: 0 | H71: 10 | I71: 5 | J71: 5 | K71: 10 | L71: 90
B72: Industrial processes and product use | C72: Metal Industry | D72: Fire protection | E72: 0 | F72: 60 | G72: 0 | H72: 10 | I72: 5 | J72: 5 | K72: 10 | L72: 90
B73: Industrial processes and product use | C73: Metal Industry | D73: Aerosols | E73: 0 | F73: 60 | G73: 0 | H73: 10 | I73: 5 | J73: 5 | K73: 10 | L73: 90
B74: Industrial processes and product use | C74: Metal Industry | D74: Solvents | E74: 0 | F74: 60 | G74: 0 | H74: 10 | I74: 5 | J74: 5 | K74: 10 | L74: 90
B75: Industrial processes and product use | C75: Metal Industry | D75: Other product manufacture and use | E75: 0 | F75: 60 | G75: 0 | H75: 10 | I75: 5 | J75: 5 | K75: 10 | L75: 90
B76: Industrial processes and product use | C76: Metal Industry | D76: Electrical equipment | E76: 0 | F76: 60 | G76: 0 | H76: 10 | I76: 5 | J76: 5 | K76: 10 | L76: 90
B77: Industrial processes and product use | C77: Metal Industry | D77: SF6 and PFCs from other product uses | E77: 0 | F77: 60 | G77: 0 | H77: 10 | I77: 5 | J77: 5 | K77: 10 | L77: 90
B78: Industrial processes and product use | C78: Metal Industry | D78: N2O from product uses | E78: 0 | F78: 60 | G78: 0 | H78: 10 | I78: 5 | J78: 5 | K78: 10 | L78: 90
B79: Agriculture, forestry and land use | C79: Livestock | D79: Enteric fermentation | E79: 100 | F79: 0 | G79: 0 | H79: 0 | I79: 0 | J79: 0 | K79: 0 | L79: 100
B80: Agriculture, forestry and land use | C80: Livestock | D80: Manure management | E80: 100 | F80: 0 | G80: 0 | H80: 0 | I80: 0 | J80: 0 | K80: 0 | L80: 100
B81: Agriculture, forestry and land use | C81: Land | D81: Forest land | E81: 100 | F81: 0 | G81: 0 | H81: 0 | I81: 0 | J81: 0 | K81: 0 | L81: 100
B82: Agriculture, forestry and land use | C82: Land | D82: Cropland | E82: 100 | F82: 0 | G82: 0 | H82: 0 | I82: 0 | J82: 0 | K82: 0 | L82: 100
B83: Agriculture, forestry and land use | C83: Land | D83: Grassland | E83: 100 | F83: 0 | G83: 0 | H83: 0 | I83: 0 | J83: 0 | K83: 0 | L83: 100
B84: Agriculture, forestry and land use | C84: Land | D84: Wetlands | E84: 100 | F84: 0 | G84: 0 | H84: 0 | I84: 0 | J84: 0 | K84: 0 | L84: 100
B85: Agriculture, forestry and land use | C85: Land | D85: Settlements | E85: 100 | F85: 0 | G85: 0 | H85: 0 | I85: 0 | J85: 0 | K85: 0 | L85: 100
B86: Agriculture, forestry and land use | C86: Aggregate sources and non-CO2 | D86: GHG emissions from biomass burning | E86: 100 | F86: 0 | G86: 0 | H86: 0 | I86: 0 | J86: 0 | K86: 0 | L86: 100
B87: Agriculture, forestry and land use | C87: Aggregate sources and non-CO2 | D87: Liming | E87: 100 | F87: 0 | G87: 0 | H87: 0 | I87: 0 | J87: 0 | K87: 0 | L87: 100
B88: Agriculture, forestry and land use | C88: Aggregate sources and non-CO2 | D88: Urea Application | E88: 100 | F88: 0 | G88: 0 | H88: 0 | I88: 0 | J88: 0 | K88: 0 | L88: 100
B89: Agriculture, forestry and land use | C89: Aggregate sources and non-CO2 | D89: Direct nitrous oxide emissions from managed soils | E89: 100 | F89: 0 | G89: 0 | H89: 0 | I89: 0 | J89: 0 | K89: 0 | L89: 100
B90: Agriculture, forestry and land use | C90: Aggregate sources and non-CO2 | D90: Indirect nitrous oxide emissions from managed soils | E90: 100 | F90: 0 | G90: 0 | H90: 0 | I90: 0 | J90: 0 | K90: 0 | L90: 100
B91: Agriculture, forestry and land use | C91: Aggregate sources and non-CO2 | D91: Indirect nitrous oxide emissions from manure management | E91: 100 | F91: 0 | G91: 0 | H91: 0 | I91: 0 | J91: 0 | K91: 0 | L91: 100
B92: Agriculture, forestry and land use | C92: Aggregate sources and non-CO2 | D92: Harvested wood products | E92: 100 | F92: 0 | G92: 0 | H92: 0 | I92: 0 | J92: 0 | K92: 0 | L92: 100
B93: Agriculture, forestry and land use | C93: Waste | D93: Solid waste disposal on land | E93: 100 | F93: 0 | G93: 0 | H93: 0 | I93: 0 | J93: 0 | K93: 0 | L93: 100
B94: Agriculture, forestry and land use | C94: Waste | D94: Biological treatment of solid waste | E94: 100 | F94: 0 | G94: 0 | H94: 0 | I94: 0 | J94: 0 | K94: 0 | L94: 100
B95: Agriculture, forestry and land use | C95: Waste | D95: Incineration and Open burning of waste | E95: 100 | F95: 0 | G95: 0 | H95: 0 | I95: 0 | J95: 0 | K95: 0 | L95: 100
B96: Agriculture, forestry and land use | C96: Waste | D96: Wastewater treatment and discharge | E96: 100 | F96: 0 | G96: 0 | H96: 0 | I96: 0 | J96: 0 | K96: 0 | L96: 100
B97: Agriculture, forestry and land use | C97: Additional Categories | D97: Other | E97: 60 | F97: 0 | G97: 0 | H97: 10 | I97: 10 | J97: 5 | K97: 10 | L97: 95
